Body Name,Body,Date,Department,Beneficiary,Summary of Purpose (SeRCOP),Amount,Merchant Code,Transaction Number,Supplier ID
Sandwell Metropolitan Borough Council,http://www.sandwell.gov.uk/info/200202/performance_and_spending/1079/payments_over_500,04-May-2022,Adult Social Care,WMCA OPERATIONS LTD,Adult Social Care,13629.00,Residential - Short Term,2223P02_CR00001,135917
Sandwell Metropolitan Borough Council,http://www.sandwell.gov.uk/info/200202/performance_and_spending/1079/payments_over_500,11-May-2022,Adult Social Care,UK HEALTH SECURITY AGENCY,Adult Social Care,381671.00,Grant Payments,2223P02_CR00002,163123
Sandwell Metropolitan Borough Council,http://www.sandwell.gov.uk/info/200202/performance_and_spending/1079/payments_over_500,01-May-2022,Adults Social Care Capital,DLM BUILDING & MAINTENANCE LTD,Adults Social Care Capital,6736.22,Deferred Charges/Grant Payments,2223P02_CR00003,137596
Sandwell Metropolitan Borough Council,http://www.sandwell.gov.uk/info/200202/performance_and_spending/1079/payments_over_500,01-May-2022,Adults Social Care Capital,LIFT & ENGINEERING SERVICES LTD,Adults Social Care Capital,1179.51,"CIP - New Construction,Conversion, Enhancement & Reno",2223P02_CR00004,77003962
Sandwell Metropolitan Borough Council,http://www.sandwell.gov.uk/info/200202/performance_and_spending/1079/payments_over_500,01-May-2022,Adults Social Care Capital,LIFT & ENGINEERING SERVICES LTD,Adults Social Care Capital,1179.51,"CIP - New Construction,Conversion, Enhancement & Reno",2223P02_CR00005,77003962
Sandwell Metropolitan Borough Council,http://www.sandwell.gov.uk/info/200202/performance_and_spending/1079/payments_over_500,01-May-2022,Adults Social Care Capital,LIFT & ENGINEERING SERVICES LTD,Adults Social Care Capital,1179.51,"CIP - New Construction,Conversion, Enhancement & Reno",2223P02_CR00006,77003962
Sandwell Metropolitan Borough Council,http://www.sandwell.gov.uk/info/200202/performance_and_spending/1079/payments_over_500,01-May-2022,Adults Social Care Capital,LIFT & ENGINEERING SERVICES LTD,Adults Social Care Capital,1179.51,"CIP - New Construction,Conversion, Enhancement & Reno",2223P02_CR00007,77003962
Sandwell Metropolitan Borough Council,http://www.sandwell.gov.uk/info/200202/performance_and_spending/1079/payments_over_500,01-May-2022,Adults Social Care Capital,LIFT & ENGINEERING SERVICES LTD,Adults Social Care Capital,5615.19,"CIP - New Construction,Conversion, Enhancement & Reno",2223P02_CR00008,77003962
Sandwell Metropolitan Borough Council,http://www.sandwell.gov.uk/info/200202/performance_and_spending/1079/payments_over_500,01-May-2022,Adults Social Care Capital,LIQUIDLOGIC LIMITED,Adults Social Care Capital,22088.00,ICT ,2223P02_CR00009,83167
Sandwell Metropolitan Borough Council,http://www.sandwell.gov.uk/info/200202/performance_and_spending/1079/payments_over_500,01-May-2022,Adults Social Care Capital,RIDGE & PARTNERS LLP,Adults Social Care Capital,3800.00,"CIP - New Construction,Conversion, Enhancement & Reno",2223P02_CR00010,134994
Sandwell Metropolitan Borough Council,http://www.sandwell.gov.uk/info/200202/performance_and_spending/1079/payments_over_500,01-Apr-2022,Adults Social Care Capital,VINCI CONSTRUCTION LTD,Adults Social Care Capital,10351.83,Deferred Charges/Grant Payments,2223P02_CR00011,36361
Sandwell Metropolitan Borough Council,http://www.sandwell.gov.uk/info/200202/performance_and_spending/1079/payments_over_500,01-Apr-2022,Adults Social Care Capital,VINCI CONSTRUCTION LTD,Adults Social Care Capital,5573.03,Deferred Charges/Grant Payments,2223P02_CR00012,36361
Sandwell Metropolitan Borough Council,http://www.sandwell.gov.uk/info/200202/performance_and_spending/1079/payments_over_500,04-May-2022,Adults Social Care Capital,VINCI CONSTRUCTION LTD,Adults Social Care Capital,3520.06,Deferred Charges/Grant Payments,2223P02_CR00013,36361
Sandwell Metropolitan Borough Council,http://www.sandwell.gov.uk/info/200202/performance_and_spending/1079/payments_over_500,04-May-2022,Adults Social Care Capital,VINCI CONSTRUCTION LTD,Adults Social Care Capital,3672.07,Deferred Charges/Grant Payments,2223P02_CR00014,36361
Sandwell Metropolitan Borough Council,http://www.sandwell.gov.uk/info/200202/performance_and_spending/1079/payments_over_500,01-May-2022,Adults Social Care Capital,WILLMOTT DIXON CONSTRUCTION LIMITED,Adults Social Care Capital,703265.47,"CIP - New Construction,Conversion, Enhancement & Reno",2223P02_CR00015,34081
Sandwell Metropolitan Borough Council,http://www.sandwell.gov.uk/info/200202/performance_and_spending/1079/payments_over_500,01-May-2022,Adults Social Care Capital,EASIBATHE LTD,Adults Social Care Capital,987.04,Deferred Charges/Grant Payments,2223P02_CR00016,46096
Sandwell Metropolitan Borough Council,http://www.sandwell.gov.uk/info/200202/performance_and_spending/1079/payments_over_500,01-May-2022,Adults Social Care Capital,JOHN GILLESPIE CONTRACTORS LTD,Adults Social Care Capital,1200.00,Deferred Charges/Grant Payments,2223P02_CR00017,82566
Sandwell Metropolitan Borough Council,http://www.sandwell.gov.uk/info/200202/performance_and_spending/1079/payments_over_500,01-May-2022,Adults Social Care Capital,PR PROPERTY MAINTENANCE,Adults Social Care Capital,38619.95,Deferred Charges/Grant Payments,2223P02_CR00018,33836
Sandwell Metropolitan Borough Council,http://www.sandwell.gov.uk/info/200202/performance_and_spending/1079/payments_over_500,12-May-2022,Adults Social Care Capital,SPECTOR DESIGN LTD,Adults Social Care Capital,15000.00,Deferred Charges/Grant Payments,2223P02_CR00019,134898
Sandwell Metropolitan Borough Council,http://www.sandwell.gov.uk/info/200202/performance_and_spending/1079/payments_over_500,01-May-2022,Childrens Services,121 CARZ,Childrens Services,5534.82,Public Transport,2223P02_CR00020,116848
Sandwell Metropolitan Borough Council,http://www.sandwell.gov.uk/info/200202/performance_and_spending/1079/payments_over_500,01-May-2022,Childrens Services,121 CARZ,Childrens Services,1872.00,Public Transport,2223P02_CR00021,116848
Sandwell Metropolitan Borough Council,http://www.sandwell.gov.uk/info/200202/performance_and_spending/1079/payments_over_500,01-May-2022,Childrens Services,121 CARZ,Childrens Services,2495.92,Public Transport,2223P02_CR00022,116848
Sandwell Metropolitan Borough Council,http://www.sandwell.gov.uk/info/200202/performance_and_spending/1079/payments_over_500,01-May-2022,Childrens Services,121 CARZ,Childrens Services,4723.48,Public Transport,2223P02_CR00023,116848
Sandwell Metropolitan Borough Council,http://www.sandwell.gov.uk/info/200202/performance_and_spending/1079/payments_over_500,01-May-2022,Childrens Services,121 CARZ,Childrens Services,1584.00,Public Transport,2223P02_CR00024,116848
Sandwell Metropolitan Borough Council,http://www.sandwell.gov.uk/info/200202/performance_and_spending/1079/payments_over_500,19-May-2022,Childrens Services,121 CARZ,Childrens Services,5534.82,Public Transport,2223P02_CR00025,116848
Sandwell Metropolitan Borough Council,http://www.sandwell.gov.uk/info/200202/performance_and_spending/1079/payments_over_500,19-May-2022,Childrens Services,121 CARZ,Childrens Services,2495.92,Public Transport,2223P02_CR00026,116848
Sandwell Metropolitan Borough Council,http://www.sandwell.gov.uk/info/200202/performance_and_spending/1079/payments_over_500,19-May-2022,Childrens Services,121 CARZ,Childrens Services,1872.00,Public Transport,2223P02_CR00027,116848
Sandwell Metropolitan Borough Council,http://www.sandwell.gov.uk/info/200202/performance_and_spending/1079/payments_over_500,19-May-2022,Childrens Services,121 CARZ,Childrens Services,1584.00,Public Transport,2223P02_CR00028,116848
Sandwell Metropolitan Borough Council,http://www.sandwell.gov.uk/info/200202/performance_and_spending/1079/payments_over_500,19-May-2022,Childrens Services,121 CARZ,Childrens Services,4455.11,Public Transport,2223P02_CR00029,116848
Sandwell Metropolitan Borough Council,http://www.sandwell.gov.uk/info/200202/performance_and_spending/1079/payments_over_500,01-May-2022,Childrens Services,4 COMMUNITY TRUST CIC,Childrens Services,560.00,Grants,2223P02_CR00030,137880
Sandwell Metropolitan Borough Council,http://www.sandwell.gov.uk/info/200202/performance_and_spending/1079/payments_over_500,09-May-2022,Childrens Services,4 COMMUNITY TRUST CIC,Childrens Services,716.39,Externally Purchased Professional Services ,2223P02_CR00031,137880
Sandwell Metropolitan Borough Council,http://www.sandwell.gov.uk/info/200202/performance_and_spending/1079/payments_over_500,09-May-2022,Childrens Services,4 COMMUNITY TRUST CIC,Childrens Services,1010.75,Externally Purchased Professional Services ,2223P02_CR00032,137880
Sandwell Metropolitan Borough Council,http://www.sandwell.gov.uk/info/200202/performance_and_spending/1079/payments_over_500,09-May-2022,Childrens Services,4 COMMUNITY TRUST CIC,Childrens Services,3529.25,Grant Payments,2223P02_CR00033,137880
Sandwell Metropolitan Borough Council,http://www.sandwell.gov.uk/info/200202/performance_and_spending/1079/payments_over_500,10-May-2022,Childrens Services,ACTION FOR CHILDREN SERVICES LIMITED,Childrens Services,32608.27,Externally Purchased Professional Services ,2223P02_CR00034,111189
Sandwell Metropolitan Borough Council,http://www.sandwell.gov.uk/info/200202/performance_and_spending/1079/payments_over_500,04-May-2022,Childrens Services,ADCS LTD,Childrens Services,875.00,Conference Expenses,2223P02_CR00035,3146
Sandwell Metropolitan Borough Council,http://www.sandwell.gov.uk/info/200202/performance_and_spending/1079/payments_over_500,04-May-2022,Childrens Services,ADCS LTD,Childrens Services,3653.00,SH Payments,2223P02_CR00036,3146
Sandwell Metropolitan Borough Council,http://www.sandwell.gov.uk/info/200202/performance_and_spending/1079/payments_over_500,01-May-2022,Childrens Services,ADT FIRE & SECURITY PLC,Childrens Services,1504.03,Security,2223P02_CR00037,01115015
Sandwell Metropolitan Borough Council,http://www.sandwell.gov.uk/info/200202/performance_and_spending/1079/payments_over_500,01-May-2022,Childrens Services,AMP BIOMASS FUEL LTD T/A AMP CLEAN ENERGY,Childrens Services,3943.55,Ingestre Hall Arts Centre,2223P02_CR00038,128761
Sandwell Metropolitan Borough Council,http://www.sandwell.gov.uk/info/200202/performance_and_spending/1079/payments_over_500,04-May-2022,Childrens Services,AVANTI GAS LIMITED,Childrens Services,831.41,Gas,2223P02_CR00039,60069
Sandwell Metropolitan Borough Council,http://www.sandwell.gov.uk/info/200202/performance_and_spending/1079/payments_over_500,04-May-2022,Childrens Services,AVANTI GAS LIMITED,Childrens Services,1067.13,Gas,2223P02_CR00040,60069
Sandwell Metropolitan Borough Council,http://www.sandwell.gov.uk/info/200202/performance_and_spending/1079/payments_over_500,04-May-2022,Childrens Services,AVANTI GAS LIMITED,Childrens Services,831.41,Gas,2223P02_CR00041,60069
Sandwell Metropolitan Borough Council,http://www.sandwell.gov.uk/info/200202/performance_and_spending/1079/payments_over_500,01-May-2022,Childrens Services,BACK CARE SOLUTIONS LIMITED,Childrens Services,1866.19,Operational Services ,2223P02_CR00042,65861
Sandwell Metropolitan Borough Council,http://www.sandwell.gov.uk/info/200202/performance_and_spending/1079/payments_over_500,19-May-2022,Childrens Services,BAINS TRAVEL,Childrens Services,1372.80,Public Transport,2223P02_CR00043,06002298
Sandwell Metropolitan Borough Council,http://www.sandwell.gov.uk/info/200202/performance_and_spending/1079/payments_over_500,19-May-2022,Childrens Services,BAINS TRAVEL,Childrens Services,2076.80,Public Transport,2223P02_CR00044,06002298
Sandwell Metropolitan Borough Council,http://www.sandwell.gov.uk/info/200202/performance_and_spending/1079/payments_over_500,01-May-2022,Childrens Services,BLAKEMORE FOOD SERVICE LTD,Childrens Services,586.72,Catering Provisions,2223P02_CR00045,2518
Sandwell Metropolitan Borough Council,http://www.sandwell.gov.uk/info/200202/performance_and_spending/1079/payments_over_500,10-May-2022,Childrens Services,BOSTIN CREATIVE ARTS AND THEATRE LTD,Childrens Services,800.00,Externally Purchased Professional Services ,2223P02_CR00046,162821
Sandwell Metropolitan Borough Council,http://www.sandwell.gov.uk/info/200202/performance_and_spending/1079/payments_over_500,01-May-2022,Childrens Services,BRUSHSTROKES,Childrens Services,1025.24,Grants,2223P02_CR00047,21029374
Sandwell Metropolitan Borough Council,http://www.sandwell.gov.uk/info/200202/performance_and_spending/1079/payments_over_500,01-May-2022,Childrens Services,BRUSHSTROKES,Childrens Services,1187.12,Grants,2223P02_CR00048,21029374
Sandwell Metropolitan Borough Council,http://www.sandwell.gov.uk/info/200202/performance_and_spending/1079/payments_over_500,01-May-2022,Childrens Services,BRUSHSTROKES,Childrens Services,1099.43,Grants,2223P02_CR00049,21029374
Sandwell Metropolitan Borough Council,http://www.sandwell.gov.uk/info/200202/performance_and_spending/1079/payments_over_500,19-May-2022,Childrens Services,BUTT TAXIS,Childrens Services,4197.42,Public Transport,2223P02_CR00050,109306
Sandwell Metropolitan Borough Council,http://www.sandwell.gov.uk/info/200202/performance_and_spending/1079/payments_over_500,01-May-2022,Childrens Services,CARLYLE LTD,Childrens Services,716.39,Externally Purchased Professional Services ,2223P02_CR00051,01507965
Sandwell Metropolitan Borough Council,http://www.sandwell.gov.uk/info/200202/performance_and_spending/1079/payments_over_500,01-May-2022,Childrens Services,CLASSIC CARS 1997,Childrens Services,51266.75,Public Transport,2223P02_CR00052,06005093
Sandwell Metropolitan Borough Council,http://www.sandwell.gov.uk/info/200202/performance_and_spending/1079/payments_over_500,19-May-2022,Childrens Services,CLASSIC CARS 1997,Childrens Services,52592.30,Public Transport,2223P02_CR00053,06005093
Sandwell Metropolitan Borough Council,http://www.sandwell.gov.uk/info/200202/performance_and_spending/1079/payments_over_500,01-May-2022,Childrens Services,COMMUNITY FOUNDATION,Childrens Services,1010.75,Externally Purchased Professional Services ,2223P02_CR00054,121601
Sandwell Metropolitan Borough Council,http://www.sandwell.gov.uk/info/200202/performance_and_spending/1079/payments_over_500,09-May-2022,Childrens Services,CONFEDERATION OF BANGLADESHI ORGANISATIONS (CBO) LIMITED,Childrens Services,1085.21,Externally Purchased Professional Services ,2223P02_CR00055,10034
Sandwell Metropolitan Borough Council,http://www.sandwell.gov.uk/info/200202/performance_and_spending/1079/payments_over_500,09-May-2022,Childrens Services,CONFEDERATION OF BANGLADESHI ORGANISATIONS (CBO) LIMITED,Childrens Services,1044.28,Externally Purchased Professional Services ,2223P02_CR00056,10034
Sandwell Metropolitan Borough Council,http://www.sandwell.gov.uk/info/200202/performance_and_spending/1079/payments_over_500,01-May-2022,Childrens Services,CORONA ENERGY RETAIL 2 LIMITED,Childrens Services,2798.77,Gas,2223P02_CR00057,118395
Sandwell Metropolitan Borough Council,http://www.sandwell.gov.uk/info/200202/performance_and_spending/1079/payments_over_500,01-May-2022,Childrens Services,COUNTY CARS (2003) LIMITED,Childrens Services,38720.00,Public Transport,2223P02_CR00058,06002387
Sandwell Metropolitan Borough Council,http://www.sandwell.gov.uk/info/200202/performance_and_spending/1079/payments_over_500,01-May-2022,Childrens Services,COUNTY CARS (2003) LIMITED,Childrens Services,88035.02,Public Transport,2223P02_CR00059,06002387
Sandwell Metropolitan Borough Council,http://www.sandwell.gov.uk/info/200202/performance_and_spending/1079/payments_over_500,01-May-2022,Childrens Services,COUNTY CARS (2003) LIMITED,Childrens Services,58352.92,Public Transport,2223P02_CR00060,06002387
Sandwell Metropolitan Borough Council,http://www.sandwell.gov.uk/info/200202/performance_and_spending/1079/payments_over_500,19-May-2022,Childrens Services,D J TRAVEL,Childrens Services,2788.80,Public Transport,2223P02_CR00061,96415
Sandwell Metropolitan Borough Council,http://www.sandwell.gov.uk/info/200202/performance_and_spending/1079/payments_over_500,01-May-2022,Childrens Services,DIGBETH DINING CLUB CIC,Childrens Services,2400.00,Externally Purchased Professional Services ,2223P02_CR00062,153646
Sandwell Metropolitan Borough Council,http://www.sandwell.gov.uk/info/200202/performance_and_spending/1079/payments_over_500,09-May-2022,Childrens Services,DOT DIGITAL CREATIVE LTD,Childrens Services,1010.75,Externally Purchased Professional Services ,2223P02_CR00063,151805
Sandwell Metropolitan Borough Council,http://www.sandwell.gov.uk/info/200202/performance_and_spending/1079/payments_over_500,01-May-2022,Childrens Services,DROACH TRAVEL LTD,Childrens Services,21020.25,Public Transport,2223P02_CR00064,06002707
Sandwell Metropolitan Borough Council,http://www.sandwell.gov.uk/info/200202/performance_and_spending/1079/payments_over_500,19-May-2022,Childrens Services,DROACH TRAVEL LTD,Childrens Services,21042.66,Public Transport,2223P02_CR00065,06002707
Sandwell Metropolitan Borough Council,http://www.sandwell.gov.uk/info/200202/performance_and_spending/1079/payments_over_500,01-May-2022,Childrens Services,DRYWALL STEEL SECTIONS LTD,Childrens Services,560.00,Grants,2223P02_CR00066,132994
Sandwell Metropolitan Borough Council,http://www.sandwell.gov.uk/info/200202/performance_and_spending/1079/payments_over_500,01-May-2022,Childrens Services,EARLS GYMNASTICS CLUB,Childrens Services,3300.00,Grant Payments,2223P02_CR00067,96950
Sandwell Metropolitan Borough Council,http://www.sandwell.gov.uk/info/200202/performance_and_spending/1079/payments_over_500,01-May-2022,Childrens Services,EATON VALLEY PRIMARY SCHOOL     ,Childrens Services,1010.75,Externally Purchased Professional Services ,2223P02_CR00068,88755
Sandwell Metropolitan Borough Council,http://www.sandwell.gov.uk/info/200202/performance_and_spending/1079/payments_over_500,01-May-2022,Childrens Services,EATON VALLEY PRIMARY SCHOOL     ,Childrens Services,716.39,Externally Purchased Professional Services ,2223P02_CR00069,88755
Sandwell Metropolitan Borough Council,http://www.sandwell.gov.uk/info/200202/performance_and_spending/1079/payments_over_500,01-May-2022,Childrens Services,EATON VALLEY PRIMARY SCHOOL     ,Childrens Services,1010.75,Externally Purchased Professional Services ,2223P02_CR00070,88755
Sandwell Metropolitan Borough Council,http://www.sandwell.gov.uk/info/200202/performance_and_spending/1079/payments_over_500,01-May-2022,Childrens Services,EATON VALLEY PRIMARY SCHOOL     ,Childrens Services,1010.75,Externally Purchased Professional Services ,2223P02_CR00071,88755
Sandwell Metropolitan Borough Council,http://www.sandwell.gov.uk/info/200202/performance_and_spending/1079/payments_over_500,01-May-2022,Childrens Services,FIVE STAR TAXIS (DUDLEY) LTD,Childrens Services,122745.74,Public Transport,2223P02_CR00072,133542
Sandwell Metropolitan Borough Council,http://www.sandwell.gov.uk/info/200202/performance_and_spending/1079/payments_over_500,19-May-2022,Childrens Services,FIVE STAR TAXIS (DUDLEY) LTD,Childrens Services,122745.74,Public Transport,2223P02_CR00073,133542
Sandwell Metropolitan Borough Council,http://www.sandwell.gov.uk/info/200202/performance_and_spending/1079/payments_over_500,01-May-2022,Childrens Services,GREAT BRIDGE PRIMARY SCHOOL                                  01,Childrens Services,500.00,Grants,2223P02_CR00074,32676
Sandwell Metropolitan Borough Council,http://www.sandwell.gov.uk/info/200202/performance_and_spending/1079/payments_over_500,01-May-2022,Childrens Services,GREAT BRIDGE PRIMARY SCHOOL                                  01,Childrens Services,500.00,Grants,2223P02_CR00075,32676
Sandwell Metropolitan Borough Council,http://www.sandwell.gov.uk/info/200202/performance_and_spending/1079/payments_over_500,01-May-2022,Childrens Services,GREEN DESTINATIONS LTD,Childrens Services,102328.92,Public Transport,2223P02_CR00076,109275
Sandwell Metropolitan Borough Council,http://www.sandwell.gov.uk/info/200202/performance_and_spending/1079/payments_over_500,19-May-2022,Childrens Services,GREEN DESTINATIONS LTD,Childrens Services,103956.08,Public Transport,2223P02_CR00077,109275
Sandwell Metropolitan Borough Council,http://www.sandwell.gov.uk/info/200202/performance_and_spending/1079/payments_over_500,19-May-2022,Childrens Services,GREEN DESTINATIONS LTD,Childrens Services,3272.80,Public Transport,2223P02_CR00078,109275
Sandwell Metropolitan Borough Council,http://www.sandwell.gov.uk/info/200202/performance_and_spending/1079/payments_over_500,01-May-2022,Childrens Services,HANBURY PRIMARY SCHOOL,Childrens Services,500.00,Grants,2223P02_CR00079,01734408
Sandwell Metropolitan Borough Council,http://www.sandwell.gov.uk/info/200202/performance_and_spending/1079/payments_over_500,01-May-2022,Childrens Services,HANBURY PRIMARY SCHOOL,Childrens Services,500.00,Grants,2223P02_CR00080,01734408
Sandwell Metropolitan Borough Council,http://www.sandwell.gov.uk/info/200202/performance_and_spending/1079/payments_over_500,01-May-2022,Childrens Services,HEART OF ENGLAND COMMUNITY FOUNDATION,Childrens Services,3000.00,Grant Payments,2223P02_CR00081,133427
Sandwell Metropolitan Borough Council,http://www.sandwell.gov.uk/info/200202/performance_and_spending/1079/payments_over_500,01-May-2022,Childrens Services,HOPE EDUCATION LTD,Childrens Services,961.81,"Printing, Stationery & General Office Expenses",2223P02_CR00082,01777295
Sandwell Metropolitan Borough Council,http://www.sandwell.gov.uk/info/200202/performance_and_spending/1079/payments_over_500,01-May-2022,Childrens Services,IRON MAIDENS COMMERCIAL LAUNDRY LIMITED,Childrens Services,863.90,Laundry,2223P02_CR00083,124628
Sandwell Metropolitan Borough Council,http://www.sandwell.gov.uk/info/200202/performance_and_spending/1079/payments_over_500,09-May-2022,Childrens Services,JMB GLOBAL LTD,Childrens Services,716.39,Externally Purchased Professional Services ,2223P02_CR00084,152360
Sandwell Metropolitan Borough Council,http://www.sandwell.gov.uk/info/200202/performance_and_spending/1079/payments_over_500,01-May-2022,Childrens Services,JPC TRAVEL SOLUTION,Childrens Services,54468.79,Public Transport,2223P02_CR00085,138533
Sandwell Metropolitan Borough Council,http://www.sandwell.gov.uk/info/200202/performance_and_spending/1079/payments_over_500,19-May-2022,Childrens Services,JPC TRAVEL SOLUTION,Childrens Services,790.00,Public Transport,2223P02_CR00086,138533
Sandwell Metropolitan Borough Council,http://www.sandwell.gov.uk/info/200202/performance_and_spending/1079/payments_over_500,01-May-2022,Childrens Services,KANCHEN KUMARI T/A KREATIVE CONSULTANCY,Childrens Services,1620.00,"Printing, Stationery & General Office Expenses",2223P02_CR00087,112641
Sandwell Metropolitan Borough Council,http://www.sandwell.gov.uk/info/200202/performance_and_spending/1079/payments_over_500,09-May-2022,Childrens Services,LIFE'S ABOUT ESSENTIALS LTD,Childrens Services,746.52,Externally Purchased Professional Services ,2223P02_CR00088,143969
Sandwell Metropolitan Borough Council,http://www.sandwell.gov.uk/info/200202/performance_and_spending/1079/payments_over_500,03-May-2022,Childrens Services,LOCAL EDUCATION AND DEVELOPMENT,Childrens Services,598.00,Discretionary Awards,2223P02_CR00089,148259
Sandwell Metropolitan Borough Council,http://www.sandwell.gov.uk/info/200202/performance_and_spending/1079/payments_over_500,11-May-2022,Childrens Services,MAKE IT REEL LTD,Childrens Services,541.67,Advertising & Publicity,2223P02_CR00090,144590
Sandwell Metropolitan Borough Council,http://www.sandwell.gov.uk/info/200202/performance_and_spending/1079/payments_over_500,01-May-2022,Childrens Services,MEAL BOX DIRECT LTD,Childrens Services,716.39,Externally Purchased Professional Services ,2223P02_CR00091,155083
Sandwell Metropolitan Borough Council,http://www.sandwell.gov.uk/info/200202/performance_and_spending/1079/payments_over_500,01-May-2022,Childrens Services,NATIONAL CONSORTIUM FOR EXAMINATION RESULTS CIC,Childrens Services,13634.72,ICT ,2223P02_CR00092,107509
Sandwell Metropolitan Borough Council,http://www.sandwell.gov.uk/info/200202/performance_and_spending/1079/payments_over_500,01-May-2022,Childrens Services,NEWAVE LTD,Childrens Services,1000.00,Agency Staff,2223P02_CR00093,101666
Sandwell Metropolitan Borough Council,http://www.sandwell.gov.uk/info/200202/performance_and_spending/1079/payments_over_500,01-May-2022,Childrens Services,OLD PARK PRIMARY SCHOOL,Childrens Services,575.00,Rents,2223P02_CR00094,04024287
Sandwell Metropolitan Borough Council,http://www.sandwell.gov.uk/info/200202/performance_and_spending/1079/payments_over_500,01-May-2022,Childrens Services,OLD PARK PRIMARY SCHOOL,Childrens Services,2370.56,Rents,2223P02_CR00095,04024287
Sandwell Metropolitan Borough Council,http://www.sandwell.gov.uk/info/200202/performance_and_spending/1079/payments_over_500,01-May-2022,Childrens Services,ONE 4 YOU SERVICES LTD,Childrens Services,56129.08,Public Transport,2223P02_CR00096,81204
Sandwell Metropolitan Borough Council,http://www.sandwell.gov.uk/info/200202/performance_and_spending/1079/payments_over_500,19-May-2022,Childrens Services,ONE 4 YOU SERVICES LTD,Childrens Services,54420.47,Public Transport,2223P02_CR00097,81204
Sandwell Metropolitan Borough Council,http://www.sandwell.gov.uk/info/200202/performance_and_spending/1079/payments_over_500,01-May-2022,Childrens Services,OUTDOOR EDUCATION ADVISERS PANEL,Childrens Services,640.00,Subscriptions,2223P02_CR00098,1080
Sandwell Metropolitan Borough Council,http://www.sandwell.gov.uk/info/200202/performance_and_spending/1079/payments_over_500,03-May-2022,Childrens Services,PARK HILL PRIMARY SCHOOL,Childrens Services,716.39,Externally Purchased Professional Services ,2223P02_CR00099,04017201
Sandwell Metropolitan Borough Council,http://www.sandwell.gov.uk/info/200202/performance_and_spending/1079/payments_over_500,03-May-2022,Childrens Services,PARK HILL PRIMARY SCHOOL,Childrens Services,716.39,Externally Purchased Professional Services ,2223P02_CR00100,04017201
Sandwell Metropolitan Borough Council,http://www.sandwell.gov.uk/info/200202/performance_and_spending/1079/payments_over_500,01-May-2022,Childrens Services,PPL PRS LTD,Childrens Services,891.68,Licences,2223P02_CR00101,134302
Sandwell Metropolitan Borough Council,http://www.sandwell.gov.uk/info/200202/performance_and_spending/1079/payments_over_500,09-May-2022,Childrens Services,PREMIER PRINT & PROMOTIONS LIMITED,Childrens Services,1230.00,Advertising & Publicity,2223P02_CR00102,128540
Sandwell Metropolitan Borough Council,http://www.sandwell.gov.uk/info/200202/performance_and_spending/1079/payments_over_500,13-May-2022,Childrens Services,PRINT DIRECT LIMITED,Childrens Services,934.95,"Printing, Stationery & General Office Expenses",2223P02_CR00103,118575
Sandwell Metropolitan Borough Council,http://www.sandwell.gov.uk/info/200202/performance_and_spending/1079/payments_over_500,01-May-2022,Childrens Services,PURE CARE SERVICES LTD,Childrens Services,1010.75,Externally Purchased Professional Services ,2223P02_CR00104,158100
Sandwell Metropolitan Borough Council,http://www.sandwell.gov.uk/info/200202/performance_and_spending/1079/payments_over_500,06-May-2022,Childrens Services,PURE CARE SERVICES LTD,Childrens Services,1085.21,Externally Purchased Professional Services ,2223P02_CR00105,158100
Sandwell Metropolitan Borough Council,http://www.sandwell.gov.uk/info/200202/performance_and_spending/1079/payments_over_500,04-May-2022,Childrens Services,RB SPORTS ACTIVITIES LTD,Childrens Services,2250.00,Grant Payments,2223P02_CR00106,126163
Sandwell Metropolitan Borough Council,http://www.sandwell.gov.uk/info/200202/performance_and_spending/1079/payments_over_500,09-May-2022,Childrens Services,RECYCLING LIVES ENVIRONMENTAL SERVICES LTD,Childrens Services,941.16,Externally Purchased Professional Services ,2223P02_CR00107,160094
Sandwell Metropolitan Borough Council,http://www.sandwell.gov.uk/info/200202/performance_and_spending/1079/payments_over_500,01-May-2022,Childrens Services,RHUBARB PATCH,Childrens Services,1500.00,Grant Payments,2223P02_CR00108,127775
Sandwell Metropolitan Borough Council,http://www.sandwell.gov.uk/info/200202/performance_and_spending/1079/payments_over_500,01-May-2022,Childrens Services,MOHAMMED SHOKAT,Childrens Services,51595.83,Public Transport,2223P02_CR00109,08583128
Sandwell Metropolitan Borough Council,http://www.sandwell.gov.uk/info/200202/performance_and_spending/1079/payments_over_500,01-May-2022,Childrens Services,MOHAMMED SHOKAT,Childrens Services,53090.41,Public Transport,2223P02_CR00110,08583128
Sandwell Metropolitan Borough Council,http://www.sandwell.gov.uk/info/200202/performance_and_spending/1079/payments_over_500,01-May-2022,Childrens Services,ANTONIO SANTORELLI,Childrens Services,941.16,Externally Purchased Professional Services ,2223P02_CR00111,80057
Sandwell Metropolitan Borough Council,http://www.sandwell.gov.uk/info/200202/performance_and_spending/1079/payments_over_500,09-May-2022,Childrens Services,SAMANTHA STEATHAM,Childrens Services,620.00,Advertising & Publicity,2223P02_CR00112,151908
Sandwell Metropolitan Borough Council,http://www.sandwell.gov.uk/info/200202/performance_and_spending/1079/payments_over_500,01-May-2022,Childrens Services,REPOSE FURNITURE LTD,Childrens Services,716.39,Externally Purchased Professional Services ,2223P02_CR00113,159480
Sandwell Metropolitan Borough Council,http://www.sandwell.gov.uk/info/200202/performance_and_spending/1079/payments_over_500,01-May-2022,Childrens Services,SEDDON CONSTRUCTION LIMITED,Childrens Services,560.00,Grants,2223P02_CR00114,132999
Sandwell Metropolitan Borough Council,http://www.sandwell.gov.uk/info/200202/performance_and_spending/1079/payments_over_500,01-May-2022,Childrens Services,SIPS EDUCATION LTD,Childrens Services,5000.00,Catering Provisions,2223P02_CR00115,110784
Sandwell Metropolitan Borough Council,http://www.sandwell.gov.uk/info/200202/performance_and_spending/1079/payments_over_500,01-May-2022,Childrens Services,SITEWATCH FIRE AND SURVEILLANCE LIMITED,Childrens Services,874.15,Security,2223P02_CR00116,55288
Sandwell Metropolitan Borough Council,http://www.sandwell.gov.uk/info/200202/performance_and_spending/1079/payments_over_500,01-May-2022,Childrens Services,SKILLS WORK AND ENTERPRISE DEVELOPMENT AGENCY LTD,Childrens Services,3627.03,Grants,2223P02_CR00117,5092
Sandwell Metropolitan Borough Council,http://www.sandwell.gov.uk/info/200202/performance_and_spending/1079/payments_over_500,01-May-2022,Childrens Services,SPOTON.NET LIMITED,Childrens Services,540.00,Advertising & Publicity,2223P02_CR00118,128844
Sandwell Metropolitan Borough Council,http://www.sandwell.gov.uk/info/200202/performance_and_spending/1079/payments_over_500,01-May-2022,Childrens Services,THOMAS CHARLES FACILITIES & MAINTENANCE LTD,Childrens Services,1890.00,Contract Cleaning,2223P02_CR00119,114170
Sandwell Metropolitan Borough Council,http://www.sandwell.gov.uk/info/200202/performance_and_spending/1079/payments_over_500,01-May-2022,Childrens Services,THOMAS CHARLES FACILITIES & MAINTENANCE LTD,Childrens Services,780.00,Contract Cleaning,2223P02_CR00120,114170
Sandwell Metropolitan Borough Council,http://www.sandwell.gov.uk/info/200202/performance_and_spending/1079/payments_over_500,01-May-2022,Childrens Services,THOMAS CHARLES FACILITIES & MAINTENANCE LTD,Childrens Services,2835.00,Contract Cleaning,2223P02_CR00121,114170
Sandwell Metropolitan Borough Council,http://www.sandwell.gov.uk/info/200202/performance_and_spending/1079/payments_over_500,01-May-2022,Childrens Services,THOMAS CHARLES FACILITIES & MAINTENANCE LTD,Childrens Services,1890.00,Contract Cleaning,2223P02_CR00122,114170
Sandwell Metropolitan Borough Council,http://www.sandwell.gov.uk/info/200202/performance_and_spending/1079/payments_over_500,01-May-2022,Childrens Services,THOMAS CHARLES FACILITIES & MAINTENANCE LTD,Childrens Services,877.50,Contract Cleaning,2223P02_CR00123,114170
Sandwell Metropolitan Borough Council,http://www.sandwell.gov.uk/info/200202/performance_and_spending/1079/payments_over_500,02-May-2022,Childrens Services,TINY TOEZ LIMITED,Childrens Services,716.39,Externally Purchased Professional Services ,2223P02_CR00124,23618
Sandwell Metropolitan Borough Council,http://www.sandwell.gov.uk/info/200202/performance_and_spending/1079/payments_over_500,01-May-2022,Childrens Services,TIPTON LITTERWATCH,Childrens Services,1010.75,Externally Purchased Professional Services ,2223P02_CR00125,27921
Sandwell Metropolitan Borough Council,http://www.sandwell.gov.uk/info/200202/performance_and_spending/1079/payments_over_500,19-May-2022,Childrens Services,TOH TAXIS,Childrens Services,1493.66,Public Transport,2223P02_CR00126,12250
Sandwell Metropolitan Borough Council,http://www.sandwell.gov.uk/info/200202/performance_and_spending/1079/payments_over_500,19-May-2022,Childrens Services,TOH TAXIS,Childrens Services,1551.96,Public Transport,2223P02_CR00127,12250
Sandwell Metropolitan Borough Council,http://www.sandwell.gov.uk/info/200202/performance_and_spending/1079/payments_over_500,19-May-2022,Childrens Services,TOH TAXIS,Childrens Services,1055.64,Public Transport,2223P02_CR00128,12250
Sandwell Metropolitan Borough Council,http://www.sandwell.gov.uk/info/200202/performance_and_spending/1079/payments_over_500,01-May-2022,Childrens Services,TOPPS MANAGEMENT & SUPPORT SERVICES LTD,Childrens Services,6785.66,Discretionary Awards,2223P02_CR00129,68846
Sandwell Metropolitan Borough Council,http://www.sandwell.gov.uk/info/200202/performance_and_spending/1079/payments_over_500,01-May-2022,Childrens Services,TOTALENERGIES GAS & POWER LTD,Childrens Services,644.51,Electricity,2223P02_CR00130,107605
Sandwell Metropolitan Borough Council,http://www.sandwell.gov.uk/info/200202/performance_and_spending/1079/payments_over_500,01-May-2022,Childrens Services,TOTALENERGIES GAS & POWER LTD,Childrens Services,702.40,Electricity,2223P02_CR00131,107605
Sandwell Metropolitan Borough Council,http://www.sandwell.gov.uk/info/200202/performance_and_spending/1079/payments_over_500,01-May-2022,Childrens Services,TOTALENERGIES GAS & POWER LTD,Childrens Services,741.68,Electricity,2223P02_CR00132,107605
Sandwell Metropolitan Borough Council,http://www.sandwell.gov.uk/info/200202/performance_and_spending/1079/payments_over_500,01-May-2022,Childrens Services,TOTALENERGIES GAS & POWER LTD,Childrens Services,1348.78,Electricity,2223P02_CR00133,107605
Sandwell Metropolitan Borough Council,http://www.sandwell.gov.uk/info/200202/performance_and_spending/1079/payments_over_500,01-May-2022,Childrens Services,TOTALENERGIES GAS & POWER LTD,Childrens Services,1140.67,Electricity,2223P02_CR00134,107605
Sandwell Metropolitan Borough Council,http://www.sandwell.gov.uk/info/200202/performance_and_spending/1079/payments_over_500,04-May-2022,Childrens Services,TOTALENERGIES GAS & POWER LTD,Childrens Services,918.60,Electricity,2223P02_CR00135,107605
Sandwell Metropolitan Borough Council,http://www.sandwell.gov.uk/info/200202/performance_and_spending/1079/payments_over_500,19-May-2022,Childrens Services,UNITY TRAVEL,Childrens Services,1992.00,Public Transport,2223P02_CR00136,64986
Sandwell Metropolitan Borough Council,http://www.sandwell.gov.uk/info/200202/performance_and_spending/1079/payments_over_500,09-May-2022,Childrens Services,VALENCIA FINE FOODS LIMITED,Childrens Services,660.00,Grants,2223P02_CR00137,131572
Sandwell Metropolitan Borough Council,http://www.sandwell.gov.uk/info/200202/performance_and_spending/1079/payments_over_500,01-May-2022,Childrens Services,WATER PLUS SELECT LIMITED,Childrens Services,1288.09,Water Services,2223P02_CR00138,129644
Sandwell Metropolitan Borough Council,http://www.sandwell.gov.uk/info/200202/performance_and_spending/1079/payments_over_500,01-May-2022,Childrens Services,WATERMAN ASPEN LTD,Childrens Services,3405.49,Externally Purchased Professional Services ,2223P02_CR00139,84354
Sandwell Metropolitan Borough Council,http://www.sandwell.gov.uk/info/200202/performance_and_spending/1079/payments_over_500,01-May-2022,Childrens Services,WEST MIDLANDS TRAVEL LIMITED,Childrens Services,6839.55,Externally Purchased Professional Services ,2223P02_CR00140,01736688
Sandwell Metropolitan Borough Council,http://www.sandwell.gov.uk/info/200202/performance_and_spending/1079/payments_over_500,11-May-2022,Childrens Services,XMA LTD,Childrens Services,675.00,ICT ,2223P02_CR00141,01135462
Sandwell Metropolitan Borough Council,http://www.sandwell.gov.uk/info/200202/performance_and_spending/1079/payments_over_500,11-May-2022,Childrens Services,XMA LTD,Childrens Services,2970.00,ICT ,2223P02_CR00142,01135462
Sandwell Metropolitan Borough Council,http://www.sandwell.gov.uk/info/200202/performance_and_spending/1079/payments_over_500,13-May-2022,Childrens Services,REDACTED PERSONAL DATA,Childrens Services,727.27,External Contract Hire,2223P02_CR00143,REDACTED PERSONAL DATA
Sandwell Metropolitan Borough Council,http://www.sandwell.gov.uk/info/200202/performance_and_spending/1079/payments_over_500,06-May-2022,Childrens Services,REDACTED PERSONAL DATA,Childrens Services,728.64,External Contract Hire,2223P02_CR00144,REDACTED PERSONAL DATA
Sandwell Metropolitan Borough Council,http://www.sandwell.gov.uk/info/200202/performance_and_spending/1079/payments_over_500,13-May-2022,Childrens Services,REDACTED PERSONAL DATA,Childrens Services,545.45,External Contract Hire,2223P02_CR00145,REDACTED PERSONAL DATA
Sandwell Metropolitan Borough Council,http://www.sandwell.gov.uk/info/200202/performance_and_spending/1079/payments_over_500,06-May-2022,Childrens Services,REDACTED PERSONAL DATA,Childrens Services,1263.60,External Contract Hire,2223P02_CR00146,REDACTED PERSONAL DATA
Sandwell Metropolitan Borough Council,http://www.sandwell.gov.uk/info/200202/performance_and_spending/1079/payments_over_500,05-May-2022,Childrens Services,AFRICAN FRENCH SPEAKING COMMUNITY SUPPORT,Childrens Services,2700.00,Grant Payments,2223P02_CR00147,107906
Sandwell Metropolitan Borough Council,http://www.sandwell.gov.uk/info/200202/performance_and_spending/1079/payments_over_500,24-May-2022,Childrens Services,BEARWOOD COMMUNITY HUB,Childrens Services,1500.00,Grant Payments,2223P02_CR00148,152312
Sandwell Metropolitan Borough Council,http://www.sandwell.gov.uk/info/200202/performance_and_spending/1079/payments_over_500,11-May-2022,Childrens Services,CAPE COMMUNITY CARE DAY CENTRE,Childrens Services,3600.00,Grant Payments,2223P02_CR00149,01693179
Sandwell Metropolitan Borough Council,http://www.sandwell.gov.uk/info/200202/performance_and_spending/1079/payments_over_500,24-May-2022,Childrens Services,COMMUNITY CONNECT FOUNDATION,Childrens Services,2250.00,Grant Payments,2223P02_CR00150,01685391
Sandwell Metropolitan Borough Council,http://www.sandwell.gov.uk/info/200202/performance_and_spending/1079/payments_over_500,24-May-2022,Childrens Services,CONFEDERATION OF BANGLADESHI ORGANISATIONS (CBO) LIMITED,Childrens Services,1000.00,Grant Payments,2223P02_CR00151,10034
Sandwell Metropolitan Borough Council,http://www.sandwell.gov.uk/info/200202/performance_and_spending/1079/payments_over_500,05-May-2022,Childrens Services,FRIAR PARK MILLENNIUM CENTRE,Childrens Services,7200.00,Grant Payments,2223P02_CR00152,28476
Sandwell Metropolitan Borough Council,http://www.sandwell.gov.uk/info/200202/performance_and_spending/1079/payments_over_500,05-May-2022,Childrens Services,GREAT BRIDGE COMMUNITY FORUM,Childrens Services,2700.00,Grant Payments,2223P02_CR00153,21026008
Sandwell Metropolitan Borough Council,http://www.sandwell.gov.uk/info/200202/performance_and_spending/1079/payments_over_500,09-May-2022,Childrens Services,ILEYS COMMUNITY ASSOCIATION,Childrens Services,2880.00,Grant Payments,2223P02_CR00154,88247
Sandwell Metropolitan Borough Council,http://www.sandwell.gov.uk/info/200202/performance_and_spending/1079/payments_over_500,24-May-2022,Childrens Services,LION FARM ACTION CENTRE (SANDWELL) LTD,Childrens Services,1000.00,Grant Payments,2223P02_CR00155,21023409
Sandwell Metropolitan Borough Council,http://www.sandwell.gov.uk/info/200202/performance_and_spending/1079/payments_over_500,05-May-2022,Childrens Services,OLDBURY UNITED C.I.C,Childrens Services,1500.00,Grant Payments,2223P02_CR00156,153379
Sandwell Metropolitan Borough Council,http://www.sandwell.gov.uk/info/200202/performance_and_spending/1079/payments_over_500,11-May-2022,Childrens Services,SANDWELL DEAF COMMUNITY ASSOCIATION,Childrens Services,1800.00,Grant Payments,2223P02_CR00157,3138
Sandwell Metropolitan Borough Council,http://www.sandwell.gov.uk/info/200202/performance_and_spending/1079/payments_over_500,09-May-2022,Childrens Services,YEMENI COMMUNITY ASSOCIATION IN SANDWELL,Childrens Services,3600.00,Grant Payments,2223P02_CR00158,01711292
Sandwell Metropolitan Borough Council,http://www.sandwell.gov.uk/info/200202/performance_and_spending/1079/payments_over_500,01-May-2022,Childrens Services Capital,CENTRAL DESIGN CONSULTANTS LTD,Childrens Services Capital,5500.00,"CIP - New Construction,Conversion, Enhancement & Reno",2223P02_CR00159,4103
Sandwell Metropolitan Borough Council,http://www.sandwell.gov.uk/info/200202/performance_and_spending/1079/payments_over_500,01-May-2022,Childrens Services Capital,HOME FARM NURSERIES (PINVIN) LIMITED,Childrens Services Capital,1631.56,"CIP - New Construction,Conversion, Enhancement & Reno",2223P02_CR00160,77003445
Sandwell Metropolitan Borough Council,http://www.sandwell.gov.uk/info/200202/performance_and_spending/1079/payments_over_500,06-May-2022,Childrens Services Capital,INTERCLASS PLC,Childrens Services Capital,148726.68,"CIP - New Construction,Conversion, Enhancement & Reno",2223P02_CR00161,77001959
Sandwell Metropolitan Borough Council,http://www.sandwell.gov.uk/info/200202/performance_and_spending/1079/payments_over_500,01-May-2022,Childrens Services Capital,POWELL OFFICE EQUIPMENT LIMITED,Childrens Services Capital,1417.86,"CIP - New Construction,Conversion, Enhancement & Reno",2223P02_CR00162,2759
Sandwell Metropolitan Borough Council,http://www.sandwell.gov.uk/info/200202/performance_and_spending/1079/payments_over_500,01-May-2022,Childrens Services Capital,RIDGE & PARTNERS LLP,Childrens Services Capital,2500.00,"CIP - New Construction,Conversion, Enhancement & Reno",2223P02_CR00163,134994
Sandwell Metropolitan Borough Council,http://www.sandwell.gov.uk/info/200202/performance_and_spending/1079/payments_over_500,19-May-2022,Childrens Services Capital,SEDDON CONSTRUCTION LIMITED,Childrens Services Capital,33207.76,"CIP - New Construction,Conversion, Enhancement & Reno",2223P02_CR00164,132999
Sandwell Metropolitan Borough Council,http://www.sandwell.gov.uk/info/200202/performance_and_spending/1079/payments_over_500,16-May-2022,Housing & Communities,MIDLAND TRUCK & VAN LTD,Neighbourhoods,-606.00,Fire Service Workshops,2223P02_CR00165,128784
Sandwell Metropolitan Borough Council,http://www.sandwell.gov.uk/info/200202/performance_and_spending/1079/payments_over_500,23-May-2022,Housing & Communities,TRUCK & TRAILER EQUIPMENT LIMITED,Neighbourhoods,-1000.00,Fire Service Workshops,2223P02_CR00166,126296
Sandwell Metropolitan Borough Council,http://www.sandwell.gov.uk/info/200202/performance_and_spending/1079/payments_over_500,20-May-2022,Housing & Communities,ACCESS INNOVATIONS UK LTD,Neighbourhoods,1327.82,Fire Service Workshops,2223P02_CR00167,137694
Sandwell Metropolitan Borough Council,http://www.sandwell.gov.uk/info/200202/performance_and_spending/1079/payments_over_500,18-May-2022,Housing & Communities,BOB RICHARDSON TOOLS & FASTENERS LTD,Neighbourhoods,2635.00,Equipment & Furniture ,2223P02_CR00168,01082705
Sandwell Metropolitan Borough Council,http://www.sandwell.gov.uk/info/200202/performance_and_spending/1079/payments_over_500,01-May-2022,Housing & Communities,COOPER MOBILE SERVICES LTD,Neighbourhoods,2330.00,Fire Service Workshops,2223P02_CR00169,01304378
Sandwell Metropolitan Borough Council,http://www.sandwell.gov.uk/info/200202/performance_and_spending/1079/payments_over_500,01-May-2022,Housing & Communities,DAWSONGROUP VANS,Neighbourhoods,511.50,Vehicle Hiring Charges,2223P02_CR00170,151498
Sandwell Metropolitan Borough Council,http://www.sandwell.gov.uk/info/200202/performance_and_spending/1079/payments_over_500,01-May-2022,Housing & Communities,DAWSONGROUP VANS,Neighbourhoods,511.50,Vehicle Hiring Charges,2223P02_CR00171,151498
Sandwell Metropolitan Borough Council,http://www.sandwell.gov.uk/info/200202/performance_and_spending/1079/payments_over_500,01-May-2022,Housing & Communities,DAWSONGROUP VANS,Neighbourhoods,606.86,Vehicle Hiring Charges,2223P02_CR00172,151498
Sandwell Metropolitan Borough Council,http://www.sandwell.gov.uk/info/200202/performance_and_spending/1079/payments_over_500,01-May-2022,Housing & Communities,DAYS RENTAL,Neighbourhoods,502.20,Vehicle Hiring Charges,2223P02_CR00173,128169
Sandwell Metropolitan Borough Council,http://www.sandwell.gov.uk/info/200202/performance_and_spending/1079/payments_over_500,01-May-2022,Housing & Communities,DAYS RENTAL,Neighbourhoods,862.20,Vehicle Hiring Charges,2223P02_CR00174,128169
Sandwell Metropolitan Borough Council,http://www.sandwell.gov.uk/info/200202/performance_and_spending/1079/payments_over_500,01-May-2022,Housing & Communities,DAYS RENTAL,Neighbourhoods,502.20,Vehicle Hiring Charges,2223P02_CR00175,128169
Sandwell Metropolitan Borough Council,http://www.sandwell.gov.uk/info/200202/performance_and_spending/1079/payments_over_500,01-May-2022,Housing & Communities,DAYS RENTAL,Neighbourhoods,505.20,Vehicle Hiring Charges,2223P02_CR00176,128169
Sandwell Metropolitan Borough Council,http://www.sandwell.gov.uk/info/200202/performance_and_spending/1079/payments_over_500,12-May-2022,Housing & Communities,DENNIS EAGLE LTD,Neighbourhoods,555.59,Fire Service Workshops,2223P02_CR00177,01004865
Sandwell Metropolitan Borough Council,http://www.sandwell.gov.uk/info/200202/performance_and_spending/1079/payments_over_500,16-May-2022,Housing & Communities,DENNIS EAGLE LTD,Neighbourhoods,921.42,Fire Service Workshops,2223P02_CR00178,01004865
Sandwell Metropolitan Borough Council,http://www.sandwell.gov.uk/info/200202/performance_and_spending/1079/payments_over_500,17-May-2022,Housing & Communities,DENNIS EAGLE LTD,Neighbourhoods,2118.09,Fire Service Workshops,2223P02_CR00179,01004865
Sandwell Metropolitan Borough Council,http://www.sandwell.gov.uk/info/200202/performance_and_spending/1079/payments_over_500,26-May-2022,Housing & Communities,DENNIS EAGLE LTD,Neighbourhoods,2036.21,Fire Service Workshops,2223P02_CR00180,01004865
Sandwell Metropolitan Borough Council,http://www.sandwell.gov.uk/info/200202/performance_and_spending/1079/payments_over_500,24-May-2022,Housing & Communities,DENNIS EAGLE LTD,Neighbourhoods,898.11,Fire Service Workshops,2223P02_CR00181,01004865
Sandwell Metropolitan Borough Council,http://www.sandwell.gov.uk/info/200202/performance_and_spending/1079/payments_over_500,26-May-2022,Housing & Communities,DENNIS EAGLE LTD,Neighbourhoods,543.76,Fire Service Workshops,2223P02_CR00182,01004865
Sandwell Metropolitan Borough Council,http://www.sandwell.gov.uk/info/200202/performance_and_spending/1079/payments_over_500,10-May-2022,Housing & Communities,DENNIS EAGLE LTD,Neighbourhoods,573.87,Fire Service Workshops,2223P02_CR00183,01004865
Sandwell Metropolitan Borough Council,http://www.sandwell.gov.uk/info/200202/performance_and_spending/1079/payments_over_500,16-May-2022,Housing & Communities,FR SHARROCK LTD,Neighbourhoods,679.39,Fire Service Workshops,2223P02_CR00184,01496028
Sandwell Metropolitan Borough Council,http://www.sandwell.gov.uk/info/200202/performance_and_spending/1079/payments_over_500,01-May-2022,Housing & Communities,FREIGHT TRANSPORT ASSOCIATION,Neighbourhoods,1743.00,Subscriptions,2223P02_CR00185,10335
Sandwell Metropolitan Borough Council,http://www.sandwell.gov.uk/info/200202/performance_and_spending/1079/payments_over_500,12-May-2022,Housing & Communities,FUCHS LUBRICANTS (UK) LTD,Neighbourhoods,773.86,Fire Service Workshops,2223P02_CR00186,130133
Sandwell Metropolitan Borough Council,http://www.sandwell.gov.uk/info/200202/performance_and_spending/1079/payments_over_500,01-May-2022,Housing & Communities,GEESINK NORBA LTD,Neighbourhoods,2275.65,Fire Service Workshops,2223P02_CR00187,102799
Sandwell Metropolitan Borough Council,http://www.sandwell.gov.uk/info/200202/performance_and_spending/1079/payments_over_500,24-May-2022,Housing & Communities,GREENHOUS COMMERCIALS LTD,Neighbourhoods,795.11,Fire Service Workshops,2223P02_CR00188,01141434
Sandwell Metropolitan Borough Council,http://www.sandwell.gov.uk/info/200202/performance_and_spending/1079/payments_over_500,01-May-2022,Housing & Communities,GUNN JCB LTD,Neighbourhoods,610.00,Fire Service Workshops,2223P02_CR00189,01015439
Sandwell Metropolitan Borough Council,http://www.sandwell.gov.uk/info/200202/performance_and_spending/1079/payments_over_500,10-May-2022,Housing & Communities,H L SMITH (TRANSMISSIONS) LTD,Neighbourhoods,510.00,Fire Service Workshops,2223P02_CR00190,01032886
Sandwell Metropolitan Borough Council,http://www.sandwell.gov.uk/info/200202/performance_and_spending/1079/payments_over_500,13-May-2022,Housing & Communities,H L SMITH (TRANSMISSIONS) LTD,Neighbourhoods,795.00,Fire Service Workshops,2223P02_CR00191,01032886
Sandwell Metropolitan Borough Council,http://www.sandwell.gov.uk/info/200202/performance_and_spending/1079/payments_over_500,01-May-2022,Housing & Communities,MACKWORTH VEHICLE CONVERSIONS,Neighbourhoods,9983.00,Fire Service Workshops,2223P02_CR00192,124922
Sandwell Metropolitan Borough Council,http://www.sandwell.gov.uk/info/200202/performance_and_spending/1079/payments_over_500,25-May-2022,Housing & Communities,MIDLAND TRUCK & VAN LTD,Neighbourhoods,1240.00,Fire Service Workshops,2223P02_CR00193,128784
Sandwell Metropolitan Borough Council,http://www.sandwell.gov.uk/info/200202/performance_and_spending/1079/payments_over_500,23-May-2022,Housing & Communities,MIDLAND TRUCK & VAN LTD,Neighbourhoods,691.05,Fire Service Workshops,2223P02_CR00194,128784
Sandwell Metropolitan Borough Council,http://www.sandwell.gov.uk/info/200202/performance_and_spending/1079/payments_over_500,18-May-2022,Housing & Communities,MOTUS COMMERCIALS HALESOWEN,Neighbourhoods,970.77,Fire Service Workshops,2223P02_CR00195,142253
Sandwell Metropolitan Borough Council,http://www.sandwell.gov.uk/info/200202/performance_and_spending/1079/payments_over_500,01-May-2022,Housing & Communities,OAKLEYS LTD,Neighbourhoods,829.02,Fire Service Workshops,2223P02_CR00196,01598115
Sandwell Metropolitan Borough Council,http://www.sandwell.gov.uk/info/200202/performance_and_spending/1079/payments_over_500,01-May-2022,Housing & Communities,OAKLEYS LTD,Neighbourhoods,2013.52,Fire Service Workshops,2223P02_CR00197,01598115
Sandwell Metropolitan Borough Council,http://www.sandwell.gov.uk/info/200202/performance_and_spending/1079/payments_over_500,10-May-2022,Housing & Communities,OAKLEYS LTD,Neighbourhoods,553.68,Repairs & Maintenance,2223P02_CR00198,01598115
Sandwell Metropolitan Borough Council,http://www.sandwell.gov.uk/info/200202/performance_and_spending/1079/payments_over_500,25-May-2022,Housing & Communities,PARTSPLUS,Neighbourhoods,964.19,Fire Service Workshops,2223P02_CR00199,01087922
Sandwell Metropolitan Borough Council,http://www.sandwell.gov.uk/info/200202/performance_and_spending/1079/payments_over_500,01-May-2022,Housing & Communities,PARTSPLUS,Neighbourhoods,522.79,Fire Service Workshops,2223P02_CR00200,01087922
Sandwell Metropolitan Borough Council,http://www.sandwell.gov.uk/info/200202/performance_and_spending/1079/payments_over_500,03-May-2022,Housing & Communities,ROBINS & DAY BIRMINGHAM NORTH,Neighbourhoods,734.18,Fire Service Workshops,2223P02_CR00201,155696
Sandwell Metropolitan Borough Council,http://www.sandwell.gov.uk/info/200202/performance_and_spending/1079/payments_over_500,11-May-2022,Housing & Communities,ROBINS & DAY BIRMINGHAM NORTH,Neighbourhoods,1617.78,Fire Service Workshops,2223P02_CR00202,155696
Sandwell Metropolitan Borough Council,http://www.sandwell.gov.uk/info/200202/performance_and_spending/1079/payments_over_500,24-May-2022,Housing & Communities,ROBINS & DAY PARTS WEST MIDLANDS,Neighbourhoods,551.46,Fire Service Workshops,2223P02_CR00203,118812
Sandwell Metropolitan Borough Council,http://www.sandwell.gov.uk/info/200202/performance_and_spending/1079/payments_over_500,04-May-2022,Housing & Communities,ROBINS & DAY PARTS WEST MIDLANDS,Neighbourhoods,621.23,Fire Service Workshops,2223P02_CR00204,118812
Sandwell Metropolitan Borough Council,http://www.sandwell.gov.uk/info/200202/performance_and_spending/1079/payments_over_500,02-May-2022,Housing & Communities,RS RECOVERY LTD,Neighbourhoods,1370.00,Fire Service Workshops,2223P02_CR00205,01756992
Sandwell Metropolitan Borough Council,http://www.sandwell.gov.uk/info/200202/performance_and_spending/1079/payments_over_500,01-May-2022,Housing & Communities,RUSSELLS LTD,Neighbourhoods,1806.12,Repairs & Maintenance,2223P02_CR00206,145675
Sandwell Metropolitan Borough Council,http://www.sandwell.gov.uk/info/200202/performance_and_spending/1079/payments_over_500,01-May-2022,Housing & Communities,RVW PUGH LTD,Neighbourhoods,1021.82,Fire Service Workshops,2223P02_CR00207,5902
Sandwell Metropolitan Borough Council,http://www.sandwell.gov.uk/info/200202/performance_and_spending/1079/payments_over_500,01-May-2022,Housing & Communities,RVW PUGH LTD,Neighbourhoods,1315.74,Fire Service Workshops,2223P02_CR00208,5902
Sandwell Metropolitan Borough Council,http://www.sandwell.gov.uk/info/200202/performance_and_spending/1079/payments_over_500,27-May-2022,Housing & Communities,SIMON TULLETT MACHINERY COMPANY LIMITED,Neighbourhoods,966.44,Repairs & Maintenance,2223P02_CR00209,109117
Sandwell Metropolitan Borough Council,http://www.sandwell.gov.uk/info/200202/performance_and_spending/1079/payments_over_500,25-May-2022,Housing & Communities,SOUTH STAFFS HIRE LTD,Neighbourhoods,627.17,Vehicle Hiring Charges,2223P02_CR00210,148517
Sandwell Metropolitan Borough Council,http://www.sandwell.gov.uk/info/200202/performance_and_spending/1079/payments_over_500,01-May-2022,Housing & Communities,TAYLOR ENGINEERING & FABRICATIONS LTD,Neighbourhoods,886.50,Fire Service Workshops,2223P02_CR00211,87793
Sandwell Metropolitan Borough Council,http://www.sandwell.gov.uk/info/200202/performance_and_spending/1079/payments_over_500,20-May-2022,Housing & Communities,TAYLOR ENGINEERING & FABRICATIONS LTD,Neighbourhoods,882.42,Fire Service Workshops,2223P02_CR00212,87793
Sandwell Metropolitan Borough Council,http://www.sandwell.gov.uk/info/200202/performance_and_spending/1079/payments_over_500,16-May-2022,Housing & Communities,TERBERG MATEC UK LTD,Neighbourhoods,2354.63,Fire Service Workshops,2223P02_CR00213,21235
Sandwell Metropolitan Borough Council,http://www.sandwell.gov.uk/info/200202/performance_and_spending/1079/payments_over_500,24-May-2022,Housing & Communities,TERBERG MATEC UK LTD,Neighbourhoods,1410.27,Fire Service Workshops,2223P02_CR00214,21235
Sandwell Metropolitan Borough Council,http://www.sandwell.gov.uk/info/200202/performance_and_spending/1079/payments_over_500,25-May-2022,Housing & Communities,TERBERG MATEC UK LTD,Neighbourhoods,516.56,Fire Service Workshops,2223P02_CR00215,21235
Sandwell Metropolitan Borough Council,http://www.sandwell.gov.uk/info/200202/performance_and_spending/1079/payments_over_500,05-May-2022,Housing & Communities,TH WHITE LIMITED,Neighbourhoods,3079.92,Fire Service Workshops,2223P02_CR00216,01774713
Sandwell Metropolitan Borough Council,http://www.sandwell.gov.uk/info/200202/performance_and_spending/1079/payments_over_500,05-May-2022,Housing & Communities,TH WHITE LIMITED,Neighbourhoods,2152.26,Fire Service Workshops,2223P02_CR00217,01774713
Sandwell Metropolitan Borough Council,http://www.sandwell.gov.uk/info/200202/performance_and_spending/1079/payments_over_500,11-May-2022,Housing & Communities,TH WHITE LIMITED,Neighbourhoods,1488.12,Fire Service Workshops,2223P02_CR00218,01774713
Sandwell Metropolitan Borough Council,http://www.sandwell.gov.uk/info/200202/performance_and_spending/1079/payments_over_500,25-May-2022,Housing & Communities,TH WHITE LIMITED,Neighbourhoods,2207.06,Fire Service Workshops,2223P02_CR00219,01774713
Sandwell Metropolitan Borough Council,http://www.sandwell.gov.uk/info/200202/performance_and_spending/1079/payments_over_500,12-May-2022,Housing & Communities,TH WHITE LIMITED,Neighbourhoods,2378.78,Repairs & Maintenance,2223P02_CR00220,01774713
Sandwell Metropolitan Borough Council,http://www.sandwell.gov.uk/info/200202/performance_and_spending/1079/payments_over_500,17-May-2022,Housing & Communities,TH WHITE LIMITED,Neighbourhoods,866.83,Repairs & Maintenance,2223P02_CR00221,01774713
Sandwell Metropolitan Borough Council,http://www.sandwell.gov.uk/info/200202/performance_and_spending/1079/payments_over_500,18-May-2022,Housing & Communities,TH WHITE LIMITED,Neighbourhoods,745.71,Repairs & Maintenance,2223P02_CR00222,01774713
Sandwell Metropolitan Borough Council,http://www.sandwell.gov.uk/info/200202/performance_and_spending/1079/payments_over_500,23-May-2022,Housing & Communities,TH WHITE LIMITED,Neighbourhoods,1282.36,Repairs & Maintenance,2223P02_CR00223,01774713
Sandwell Metropolitan Borough Council,http://www.sandwell.gov.uk/info/200202/performance_and_spending/1079/payments_over_500,01-May-2022,Housing & Communities,TRUCK & TRAILER EQUIPMENT LIMITED,Neighbourhoods,1200.00,Fire Service Workshops,2223P02_CR00224,126296
Sandwell Metropolitan Borough Council,http://www.sandwell.gov.uk/info/200202/performance_and_spending/1079/payments_over_500,23-May-2022,Housing & Communities,TRUCK & TRAILER EQUIPMENT LIMITED,Neighbourhoods,1326.00,Fire Service Workshops,2223P02_CR00225,126296
Sandwell Metropolitan Borough Council,http://www.sandwell.gov.uk/info/200202/performance_and_spending/1079/payments_over_500,16-May-2022,Housing & Communities,ADI UK LTD,Neighbourhoods,1350.00,"Printing, Stationery & General Office Expenses",2223P02_CR00226,32361
Sandwell Metropolitan Borough Council,http://www.sandwell.gov.uk/info/200202/performance_and_spending/1079/payments_over_500,01-May-2022,Housing & Communities,ADT FIRE & SECURITY PLC,Neighbourhoods,589.54,Security,2223P02_CR00227,01115015
Sandwell Metropolitan Borough Council,http://www.sandwell.gov.uk/info/200202/performance_and_spending/1079/payments_over_500,01-May-2022,Housing & Communities,ADT FIRE & SECURITY PLC,Neighbourhoods,2625.44,Security,2223P02_CR00228,01115015
Sandwell Metropolitan Borough Council,http://www.sandwell.gov.uk/info/200202/performance_and_spending/1079/payments_over_500,18-May-2022,Housing & Communities,AECOM INFRASTRUCTURE & ENVIRONMENT UK LIMITED,Neighbourhoods,1235.54,Consultancy,2223P02_CR00229,107299
Sandwell Metropolitan Borough Council,http://www.sandwell.gov.uk/info/200202/performance_and_spending/1079/payments_over_500,01-May-2022,Housing & Communities,ALLSTAR BUSINESS SOLUTIONS LIMITED,Neighbourhoods,3188.09,Fuel ,2223P02_CR00230,104057
Sandwell Metropolitan Borough Council,http://www.sandwell.gov.uk/info/200202/performance_and_spending/1079/payments_over_500,15-May-2022,Housing & Communities,ALLSTAR BUSINESS SOLUTIONS LIMITED,Neighbourhoods,3146.22,Fuel ,2223P02_CR00231,104057
Sandwell Metropolitan Borough Council,http://www.sandwell.gov.uk/info/200202/performance_and_spending/1079/payments_over_500,01-May-2022,Housing & Communities,ANTONY BARKLAM T/A PARTY STOP,Neighbourhoods,2625.00,Civic Events,2223P02_CR00232,8079
Sandwell Metropolitan Borough Council,http://www.sandwell.gov.uk/info/200202/performance_and_spending/1079/payments_over_500,10-May-2022,Housing & Communities,ARCHIVES WEST MIDLANDS,Neighbourhoods,500.00,Subscriptions,2223P02_CR00233,134908
Sandwell Metropolitan Borough Council,http://www.sandwell.gov.uk/info/200202/performance_and_spending/1079/payments_over_500,18-May-2022,Housing & Communities,ASHTON FIRE LTD,Housing & Communities,1650.00,CIP - Op Equipment,2223P02_CR00234,141798
Sandwell Metropolitan Borough Council,http://www.sandwell.gov.uk/info/200202/performance_and_spending/1079/payments_over_500,04-May-2022,Housing & Communities,ASKEWS AND HOLTS LIBRARY SERVICES LTD.,Neighbourhoods,3100.00,Materials & Consumables,2223P02_CR00235,111865
Sandwell Metropolitan Borough Council,http://www.sandwell.gov.uk/info/200202/performance_and_spending/1079/payments_over_500,01-May-2022,Housing & Communities,BEECHWOOD TREES & LANDSCAPE LTD,Neighbourhoods,540.00,Externally Purchased Professional Services ,2223P02_CR00236,93287
Sandwell Metropolitan Borough Council,http://www.sandwell.gov.uk/info/200202/performance_and_spending/1079/payments_over_500,10-May-2022,Housing & Communities,BLACK COUNTRY TOURING,Neighbourhoods,850.00,Civic Events,2223P02_CR00237,01661722
Sandwell Metropolitan Borough Council,http://www.sandwell.gov.uk/info/200202/performance_and_spending/1079/payments_over_500,10-May-2022,Housing & Communities,BLACK COUNTRY TOURING,Neighbourhoods,750.00,Civic Events,2223P02_CR00238,01661722
Sandwell Metropolitan Borough Council,http://www.sandwell.gov.uk/info/200202/performance_and_spending/1079/payments_over_500,09-May-2022,Housing & Communities,BUNZL CLEANING & HYGIENE SUPPLIES,Neighbourhoods,930.24,Contract Cleaning,2223P02_CR00239,1946
Sandwell Metropolitan Borough Council,http://www.sandwell.gov.uk/info/200202/performance_and_spending/1079/payments_over_500,01-May-2022,Housing & Communities,CERTAS ENERGY LIMITED,Neighbourhoods,13628.06,Fuel ,2223P02_CR00240,80421
Sandwell Metropolitan Borough Council,http://www.sandwell.gov.uk/info/200202/performance_and_spending/1079/payments_over_500,05-May-2022,Housing & Communities,CERTAS ENERGY LIMITED,Neighbourhoods,14910.00,Fuel ,2223P02_CR00241,80421
Sandwell Metropolitan Borough Council,http://www.sandwell.gov.uk/info/200202/performance_and_spending/1079/payments_over_500,01-May-2022,Housing & Communities,CREATIVE ACTIVE LIVES CIC,Neighbourhoods,4200.00,Civic Events,2223P02_CR00242,138641
Sandwell Metropolitan Borough Council,http://www.sandwell.gov.uk/info/200202/performance_and_spending/1079/payments_over_500,01-May-2022,Housing & Communities,EGBERT H TAYLOR & CO LTD,Neighbourhoods,3600.00,Civic Events,2223P02_CR00243,01704572
Sandwell Metropolitan Borough Council,http://www.sandwell.gov.uk/info/200202/performance_and_spending/1079/payments_over_500,05-May-2022,Housing & Communities,FITZPATRICK WOOLMER DESIGN AND PUBLISHING LIMITED,Neighbourhoods,1673.00,Equipment & Furniture ,2223P02_CR00244,54670
Sandwell Metropolitan Borough Council,http://www.sandwell.gov.uk/info/200202/performance_and_spending/1079/payments_over_500,01-May-2022,Housing & Communities,GILANI ENTERPRISES LIMITED,Neighbourhoods,9386.67,Rents,2223P02_CR00245,2696
Sandwell Metropolitan Borough Council,http://www.sandwell.gov.uk/info/200202/performance_and_spending/1079/payments_over_500,01-May-2022,Housing & Communities,GILANI ENTERPRISES LIMITED,Neighbourhoods,9386.67,Rents,2223P02_CR00246,2696
Sandwell Metropolitan Borough Council,http://www.sandwell.gov.uk/info/200202/performance_and_spending/1079/payments_over_500,01-May-2022,Housing & Communities,GILANI ENTERPRISES LIMITED,Neighbourhoods,6826.67,Rents,2223P02_CR00247,2696
Sandwell Metropolitan Borough Council,http://www.sandwell.gov.uk/info/200202/performance_and_spending/1079/payments_over_500,01-May-2022,Housing & Communities,GILANI ENTERPRISES LIMITED,Neighbourhoods,2560.00,Rents,2223P02_CR00248,2696
Sandwell Metropolitan Borough Council,http://www.sandwell.gov.uk/info/200202/performance_and_spending/1079/payments_over_500,01-May-2022,Housing & Communities,GILANI ENTERPRISES LIMITED,Neighbourhoods,960.00,Rents,2223P02_CR00249,2696
Sandwell Metropolitan Borough Council,http://www.sandwell.gov.uk/info/200202/performance_and_spending/1079/payments_over_500,01-May-2022,Housing & Communities,GILANI ENTERPRISES LIMITED,Neighbourhoods,2666.67,Rents,2223P02_CR00250,2696
Sandwell Metropolitan Borough Council,http://www.sandwell.gov.uk/info/200202/performance_and_spending/1079/payments_over_500,01-May-2022,Housing & Communities,GILANI ENTERPRISES LIMITED,Neighbourhoods,7680.00,Rents,2223P02_CR00251,2696
Sandwell Metropolitan Borough Council,http://www.sandwell.gov.uk/info/200202/performance_and_spending/1079/payments_over_500,01-May-2022,Housing & Communities,GILANI ENTERPRISES LIMITED,Neighbourhoods,1066.67,Rents,2223P02_CR00252,2696
Sandwell Metropolitan Borough Council,http://www.sandwell.gov.uk/info/200202/performance_and_spending/1079/payments_over_500,01-May-2022,Housing & Communities,GILANI ENTERPRISES LIMITED,Neighbourhoods,853.33,Rents,2223P02_CR00253,2696
Sandwell Metropolitan Borough Council,http://www.sandwell.gov.uk/info/200202/performance_and_spending/1079/payments_over_500,19-May-2022,Housing & Communities,GREENTECH LTD,Neighbourhoods,1870.00,Materials & Consumables,2223P02_CR00254,163053
Sandwell Metropolitan Borough Council,http://www.sandwell.gov.uk/info/200202/performance_and_spending/1079/payments_over_500,01-May-2022,Housing & Communities,HAYSTOUN CONSTRUCTION LTD,Neighbourhoods,1567.50,Operational Services ,2223P02_CR00255,11849
Sandwell Metropolitan Borough Council,http://www.sandwell.gov.uk/info/200202/performance_and_spending/1079/payments_over_500,23-May-2022,Housing & Communities,HICKS HADLEY LETTINGS,Neighbourhoods,1275.00,Rents,2223P02_CR00256,92118
Sandwell Metropolitan Borough Council,http://www.sandwell.gov.uk/info/200202/performance_and_spending/1079/payments_over_500,01-May-2022,Housing & Communities,"HIGHFIELD HOUSE HOTEL,",Neighbourhoods,3660.00,Rents,2223P02_CR00257,162756
Sandwell Metropolitan Borough Council,http://www.sandwell.gov.uk/info/200202/performance_and_spending/1079/payments_over_500,01-May-2022,Housing & Communities,"HIGHFIELD HOUSE HOTEL,",Neighbourhoods,1680.00,Rents,2223P02_CR00258,162756
Sandwell Metropolitan Borough Council,http://www.sandwell.gov.uk/info/200202/performance_and_spending/1079/payments_over_500,01-May-2022,Housing & Communities,"HIGHFIELD HOUSE HOTEL,",Neighbourhoods,1520.00,Rents,2223P02_CR00259,162756
Sandwell Metropolitan Borough Council,http://www.sandwell.gov.uk/info/200202/performance_and_spending/1079/payments_over_500,01-May-2022,Housing & Communities,"HIGHFIELD HOUSE HOTEL,",Neighbourhoods,1560.00,Rents,2223P02_CR00260,162756
Sandwell Metropolitan Borough Council,http://www.sandwell.gov.uk/info/200202/performance_and_spending/1079/payments_over_500,01-May-2022,Housing & Communities,"HIGHFIELD HOUSE HOTEL,",Neighbourhoods,880.00,Rents,2223P02_CR00261,162756
Sandwell Metropolitan Borough Council,http://www.sandwell.gov.uk/info/200202/performance_and_spending/1079/payments_over_500,18-May-2022,Housing & Communities,HOARE LEA LLP,Housing & Communities,5875.00,"CIP - New Construction,Conversion, Enhancement & Reno",2223P02_CR00262,137607
Sandwell Metropolitan Borough Council,http://www.sandwell.gov.uk/info/200202/performance_and_spending/1079/payments_over_500,01-May-2022,Housing & Communities,HOME FARM NURSERIES (PINVIN) LIMITED,Neighbourhoods,967.50,Contract Cleaning,2223P02_CR00263,77003445
Sandwell Metropolitan Borough Council,http://www.sandwell.gov.uk/info/200202/performance_and_spending/1079/payments_over_500,06-May-2022,Housing & Communities,IAN LIVIE T/A IAN LIVIE AND HIS WORLD WIDE DISCO,Neighbourhoods,1896.00,Civic Events,2223P02_CR00264,150369
Sandwell Metropolitan Borough Council,http://www.sandwell.gov.uk/info/200202/performance_and_spending/1079/payments_over_500,04-May-2022,Housing & Communities,INVICTA BUSINESS MACHINES LTD,Neighbourhoods,1170.00,Equipment & Furniture ,2223P02_CR00265,142027
Sandwell Metropolitan Borough Council,http://www.sandwell.gov.uk/info/200202/performance_and_spending/1079/payments_over_500,04-May-2022,Housing & Communities,KEYCRAFT,Neighbourhoods,989.40,Materials & Consumables,2223P02_CR00266,01064066
Sandwell Metropolitan Borough Council,http://www.sandwell.gov.uk/info/200202/performance_and_spending/1079/payments_over_500,10-May-2022,Housing & Communities,LNP SOUND LTD,Neighbourhoods,648.00,Civic Events,2223P02_CR00267,41089
Sandwell Metropolitan Borough Council,http://www.sandwell.gov.uk/info/200202/performance_and_spending/1079/payments_over_500,18-May-2022,Housing & Communities,MACE LTD,Neighbourhoods,9060.00,Consultancy,2223P02_CR00268,30882
Sandwell Metropolitan Borough Council,http://www.sandwell.gov.uk/info/200202/performance_and_spending/1079/payments_over_500,01-May-2022,Housing & Communities,MACINTOSH FOODSERVICE SOLUTIONS LTD,Neighbourhoods,1740.00,Externally Purchased Professional Services ,2223P02_CR00269,162369
Sandwell Metropolitan Borough Council,http://www.sandwell.gov.uk/info/200202/performance_and_spending/1079/payments_over_500,01-May-2022,Housing & Communities,MANOR ABBEY FOODS LTD,Neighbourhoods,524.33,Catering Provisions,2223P02_CR00270,63063
Sandwell Metropolitan Borough Council,http://www.sandwell.gov.uk/info/200202/performance_and_spending/1079/payments_over_500,01-May-2022,Housing & Communities,MIDLAND CHILLED FOODS LIMITED,Neighbourhoods,914.34,Catering Provisions,2223P02_CR00271,106924
Sandwell Metropolitan Borough Council,http://www.sandwell.gov.uk/info/200202/performance_and_spending/1079/payments_over_500,01-May-2022,Housing & Communities,MIDLAND FORESTRY LIMITED,Neighbourhoods,624.00,Externally Purchased Professional Services ,2223P02_CR00272,45812
Sandwell Metropolitan Borough Council,http://www.sandwell.gov.uk/info/200202/performance_and_spending/1079/payments_over_500,01-May-2022,Housing & Communities,MIDLAND FORESTRY LIMITED,Neighbourhoods,520.00,Externally Purchased Professional Services ,2223P02_CR00273,45812
Sandwell Metropolitan Borough Council,http://www.sandwell.gov.uk/info/200202/performance_and_spending/1079/payments_over_500,01-May-2022,Housing & Communities,MIDLAND FORESTRY LIMITED,Neighbourhoods,1232.00,Externally Purchased Professional Services ,2223P02_CR00274,45812
Sandwell Metropolitan Borough Council,http://www.sandwell.gov.uk/info/200202/performance_and_spending/1079/payments_over_500,01-May-2022,Housing & Communities,MIDLAND FORESTRY LIMITED,Neighbourhoods,1372.00,Externally Purchased Professional Services ,2223P02_CR00275,45812
Sandwell Metropolitan Borough Council,http://www.sandwell.gov.uk/info/200202/performance_and_spending/1079/payments_over_500,01-May-2022,Housing & Communities,MIDLAND FORESTRY LIMITED,Neighbourhoods,528.00,Externally Purchased Professional Services ,2223P02_CR00276,45812
Sandwell Metropolitan Borough Council,http://www.sandwell.gov.uk/info/200202/performance_and_spending/1079/payments_over_500,01-May-2022,Housing & Communities,MIDLAND FORESTRY LIMITED,Neighbourhoods,780.00,Externally Purchased Professional Services ,2223P02_CR00277,45812
Sandwell Metropolitan Borough Council,http://www.sandwell.gov.uk/info/200202/performance_and_spending/1079/payments_over_500,01-May-2022,Housing & Communities,MIDLAND FORESTRY LIMITED,Neighbourhoods,616.00,Externally Purchased Professional Services ,2223P02_CR00278,45812
Sandwell Metropolitan Borough Council,http://www.sandwell.gov.uk/info/200202/performance_and_spending/1079/payments_over_500,01-May-2022,Housing & Communities,MIDLAND FORESTRY LIMITED,Neighbourhoods,510.00,Externally Purchased Professional Services ,2223P02_CR00279,45812
Sandwell Metropolitan Borough Council,http://www.sandwell.gov.uk/info/200202/performance_and_spending/1079/payments_over_500,01-May-2022,Housing & Communities,MIDLAND FORESTRY LIMITED,Neighbourhoods,560.00,Externally Purchased Professional Services ,2223P02_CR00280,45812
Sandwell Metropolitan Borough Council,http://www.sandwell.gov.uk/info/200202/performance_and_spending/1079/payments_over_500,01-May-2022,Housing & Communities,MIDLAND FORESTRY LIMITED,Neighbourhoods,11313.00,Externally Purchased Professional Services ,2223P02_CR00281,45812
Sandwell Metropolitan Borough Council,http://www.sandwell.gov.uk/info/200202/performance_and_spending/1079/payments_over_500,13-May-2022,Housing & Communities,MOVECORP HOLDINGS LTD,Neighbourhoods,655.00,Rents,2223P02_CR00282,152623
Sandwell Metropolitan Borough Council,http://www.sandwell.gov.uk/info/200202/performance_and_spending/1079/payments_over_500,23-May-2022,Housing & Communities,MY WORLD ESTATES,Neighbourhoods,1500.00,Tenants Expenses,2223P02_CR00283,143632
Sandwell Metropolitan Borough Council,http://www.sandwell.gov.uk/info/200202/performance_and_spending/1079/payments_over_500,01-May-2022,Housing & Communities,NOMIX ENVIRO LTD,Neighbourhoods,9449.00,Materials & Consumables,2223P02_CR00284,37313
Sandwell Metropolitan Borough Council,http://www.sandwell.gov.uk/info/200202/performance_and_spending/1079/payments_over_500,01-May-2022,Housing & Communities,ONLINE-4-U LTD,Neighbourhoods,3943.33,Externally Purchased Professional Services ,2223P02_CR00285,163045
Sandwell Metropolitan Borough Council,http://www.sandwell.gov.uk/info/200202/performance_and_spending/1079/payments_over_500,06-May-2022,Housing & Communities,P CASEY LTD,Housing & Communities,168407.55,"CIP - New Construction,Conversion, Enhancement & Reno",2223P02_CR00286,149276
Sandwell Metropolitan Borough Council,http://www.sandwell.gov.uk/info/200202/performance_and_spending/1079/payments_over_500,01-May-2022,Housing & Communities,PENNON WATER SERVICES T/A SOURCE FOR BUSINESS,Neighbourhoods,934.27,Water Services,2223P02_CR00287,131726
Sandwell Metropolitan Borough Council,http://www.sandwell.gov.uk/info/200202/performance_and_spending/1079/payments_over_500,01-May-2022,Housing & Communities,PETERS LIMITED,Neighbourhoods,655.00,Equipment & Furniture ,2223P02_CR00288,01059117
Sandwell Metropolitan Borough Council,http://www.sandwell.gov.uk/info/200202/performance_and_spending/1079/payments_over_500,06-May-2022,Housing & Communities,PITCHMARK LTD,Neighbourhoods,6600.00,Equipment & Furniture ,2223P02_CR00289,120374
Sandwell Metropolitan Borough Council,http://www.sandwell.gov.uk/info/200202/performance_and_spending/1079/payments_over_500,01-May-2022,Housing & Communities,PITCHMARK LTD,Neighbourhoods,5568.00,Equipment & Furniture ,2223P02_CR00290,120374
Sandwell Metropolitan Borough Council,http://www.sandwell.gov.uk/info/200202/performance_and_spending/1079/payments_over_500,01-May-2022,Housing & Communities,PPL PRS LTD,Neighbourhoods,2540.69,Licences,2223P02_CR00291,134302
Sandwell Metropolitan Borough Council,http://www.sandwell.gov.uk/info/200202/performance_and_spending/1079/payments_over_500,01-May-2022,Housing & Communities,PREMIER CARPETS & FLOORING LTD,Neighbourhoods,2024.00,Equipment & Furniture ,2223P02_CR00292,12078
Sandwell Metropolitan Borough Council,http://www.sandwell.gov.uk/info/200202/performance_and_spending/1079/payments_over_500,01-May-2022,Housing & Communities,PROFILE SECURITY SERVICES LTD,Neighbourhoods,672.21,Security,2223P02_CR00293,131253
Sandwell Metropolitan Borough Council,http://www.sandwell.gov.uk/info/200202/performance_and_spending/1079/payments_over_500,01-May-2022,Housing & Communities,PROFILE SECURITY SERVICES LTD,Neighbourhoods,1113.56,Security,2223P02_CR00294,131253
Sandwell Metropolitan Borough Council,http://www.sandwell.gov.uk/info/200202/performance_and_spending/1079/payments_over_500,01-May-2022,Housing & Communities,Q TECHNICAL SERVICES UK LTD,Neighbourhoods,526.00,Building Maintenance & Improvements,2223P02_CR00295,135645
Sandwell Metropolitan Borough Council,http://www.sandwell.gov.uk/info/200202/performance_and_spending/1079/payments_over_500,18-May-2022,Housing & Communities,WAFER HADLEY,Neighbourhoods,1750.00,Consultancy,2223P02_CR00296,136196
Sandwell Metropolitan Borough Council,http://www.sandwell.gov.uk/info/200202/performance_and_spending/1079/payments_over_500,01-May-2022,Housing & Communities,NATHAN BECKETT,Neighbourhoods,4960.00,Building Maintenance & Improvements,2223P02_CR00297,137417
Sandwell Metropolitan Borough Council,http://www.sandwell.gov.uk/info/200202/performance_and_spending/1079/payments_over_500,01-May-2022,Housing & Communities,RICHARD HARRIS.,Neighbourhoods,600.00,Externally Purchased Professional Services ,2223P02_CR00298,162653
Sandwell Metropolitan Borough Council,http://www.sandwell.gov.uk/info/200202/performance_and_spending/1079/payments_over_500,01-May-2022,Housing & Communities,REDACTED PERSONAL DATA,Neighbourhoods,625.00,Externally Purchased Professional Services ,2223P02_CR00299,REDACTED PERSONAL DATA
Sandwell Metropolitan Borough Council,http://www.sandwell.gov.uk/info/200202/performance_and_spending/1079/payments_over_500,01-May-2022,Housing & Communities,RG NIXON LTD,Neighbourhoods,1330.00,Building Maintenance & Improvements,2223P02_CR00300,01539261
Sandwell Metropolitan Borough Council,http://www.sandwell.gov.uk/info/200202/performance_and_spending/1079/payments_over_500,01-May-2022,Housing & Communities,RISE BESPOKE FOODS LTD,Neighbourhoods,500.00,Catering Provisions,2223P02_CR00301,148445
Sandwell Metropolitan Borough Council,http://www.sandwell.gov.uk/info/200202/performance_and_spending/1079/payments_over_500,04-May-2022,Housing & Communities,RMF LANDSCAPING LTD,Neighbourhoods,2282.00,Equipment & Furniture ,2223P02_CR00302,77008956
Sandwell Metropolitan Borough Council,http://www.sandwell.gov.uk/info/200202/performance_and_spending/1079/payments_over_500,11-May-2022,Housing & Communities,SAMUEL AND CO ASSOCIATES LIMITED,Neighbourhoods,795.00,Tenants Expenses,2223P02_CR00303,145942
Sandwell Metropolitan Borough Council,http://www.sandwell.gov.uk/info/200202/performance_and_spending/1079/payments_over_500,01-May-2022,Housing & Communities,SANDWELL LIFT PROJECT COMPANY (NO 3) LIMITED,Neighbourhoods,116009.24,SH Payments,2223P02_CR00304,113986
Sandwell Metropolitan Borough Council,http://www.sandwell.gov.uk/info/200202/performance_and_spending/1079/payments_over_500,17-May-2022,Housing & Communities,SERCO LIMITED,Neighbourhoods,177343.30,Waste Disposal Charges,2223P02_CR00305,53771
Sandwell Metropolitan Borough Council,http://www.sandwell.gov.uk/info/200202/performance_and_spending/1079/payments_over_500,17-May-2022,Housing & Communities,SERCO LIMITED,Neighbourhoods,1564806.30,Waste Disposal Charges,2223P02_CR00306,53771
Sandwell Metropolitan Borough Council,http://www.sandwell.gov.uk/info/200202/performance_and_spending/1079/payments_over_500,17-May-2022,Housing & Communities,SERCO LIMITED,Neighbourhoods,1661868.31,Waste Disposal Charges,2223P02_CR00307,53771
Sandwell Metropolitan Borough Council,http://www.sandwell.gov.uk/info/200202/performance_and_spending/1079/payments_over_500,01-May-2022,Housing & Communities,SUEZ RECYLING AND RECOVERY HOLDINGS UK LTD,Neighbourhoods,1597.15,Waste Disposal Charges,2223P02_CR00308,129939
Sandwell Metropolitan Borough Council,http://www.sandwell.gov.uk/info/200202/performance_and_spending/1079/payments_over_500,04-May-2022,Housing & Communities,TELETRAC NAVMAN (UK) LTD,Neighbourhoods,672.00,External Contract Hire,2223P02_CR00309,129341
Sandwell Metropolitan Borough Council,http://www.sandwell.gov.uk/info/200202/performance_and_spending/1079/payments_over_500,04-May-2022,Housing & Communities,THIRTY FOUR STORES LTD,Neighbourhoods,1238.17,Externally Purchased Professional Services ,2223P02_CR00310,162685
Sandwell Metropolitan Borough Council,http://www.sandwell.gov.uk/info/200202/performance_and_spending/1079/payments_over_500,18-May-2022,Housing & Communities,THOMSON ECOLOGY LIMITED,Housing & Communities,658.00,CIP - Acquisition of Land & Existing Buildings,2223P02_CR00311,120393
Sandwell Metropolitan Borough Council,http://www.sandwell.gov.uk/info/200202/performance_and_spending/1079/payments_over_500,01-May-2022,Housing & Communities,TOTALENERGIES GAS & POWER LTD,Neighbourhoods,1246.41,Electricity,2223P02_CR00312,107605
Sandwell Metropolitan Borough Council,http://www.sandwell.gov.uk/info/200202/performance_and_spending/1079/payments_over_500,01-May-2022,Housing & Communities,TOTALENERGIES GAS & POWER LTD,Neighbourhoods,613.65,Gas,2223P02_CR00313,107605
Sandwell Metropolitan Borough Council,http://www.sandwell.gov.uk/info/200202/performance_and_spending/1079/payments_over_500,01-May-2022,Housing & Communities,TUDOR ENVIRONMENTAL,Neighbourhoods,961.98,Materials & Consumables,2223P02_CR00314,01528713
Sandwell Metropolitan Borough Council,http://www.sandwell.gov.uk/info/200202/performance_and_spending/1079/payments_over_500,01-May-2022,Housing & Communities,TURF WORLD LIMITED,Neighbourhoods,1112.00,Materials & Consumables,2223P02_CR00315,130609
Sandwell Metropolitan Borough Council,http://www.sandwell.gov.uk/info/200202/performance_and_spending/1079/payments_over_500,19-May-2022,Housing & Communities,VENDAID LTD,Neighbourhoods,639.93,Catering Provisions,2223P02_CR00316,01045695
Sandwell Metropolitan Borough Council,http://www.sandwell.gov.uk/info/200202/performance_and_spending/1079/payments_over_500,01-May-2022,Housing & Communities,VENDAID LTD,Neighbourhoods,1322.02,Catering Provisions,2223P02_CR00317,01045695
Sandwell Metropolitan Borough Council,http://www.sandwell.gov.uk/info/200202/performance_and_spending/1079/payments_over_500,01-May-2022,Housing & Communities,WATER PLUS SELECT LIMITED,Neighbourhoods,532.56,Water Services,2223P02_CR00318,129644
Sandwell Metropolitan Borough Council,http://www.sandwell.gov.uk/info/200202/performance_and_spending/1079/payments_over_500,01-May-2022,Housing & Communities,WATER PLUS SELECT LIMITED,Neighbourhoods,794.47,Water Services,2223P02_CR00319,129644
Sandwell Metropolitan Borough Council,http://www.sandwell.gov.uk/info/200202/performance_and_spending/1079/payments_over_500,17-May-2022,Housing & Communities,WATES CONSTRUCTION LTD                                 01,Housing & Communities,145180.95,"CIP - New Construction,Conversion, Enhancement & Reno",2223P02_CR00320,77000882
Sandwell Metropolitan Borough Council,http://www.sandwell.gov.uk/info/200202/performance_and_spending/1079/payments_over_500,01-May-2022,Housing & Communities,WEST MIDLANDS MARQUEES,Neighbourhoods,5000.00,Equipment & Furniture ,2223P02_CR00321,134805
Sandwell Metropolitan Borough Council,http://www.sandwell.gov.uk/info/200202/performance_and_spending/1079/payments_over_500,01-May-2022,Housing & Communities,WHITTLE PROGRAMMED MAINTENANCE LIMITED,Neighbourhoods,795.00,Building Maintenance & Improvements,2223P02_CR00322,129692
Sandwell Metropolitan Borough Council,http://www.sandwell.gov.uk/info/200202/performance_and_spending/1079/payments_over_500,01-May-2022,Housing & Communities,WHITTLE PROGRAMMED MAINTENANCE LIMITED,Neighbourhoods,3675.00,Building Maintenance & Improvements,2223P02_CR00323,129692
Sandwell Metropolitan Borough Council,http://www.sandwell.gov.uk/info/200202/performance_and_spending/1079/payments_over_500,10-May-2022,Housing & Communities,WITHYBED LTD,Neighbourhoods,4999.00,Operational Services ,2223P02_CR00324,85012
Sandwell Metropolitan Borough Council,http://www.sandwell.gov.uk/info/200202/performance_and_spending/1079/payments_over_500,01-May-2022,Housing & Communities,WYNNSTAY (AGRICULTURAL SUPPLIES) LIMITED,Neighbourhoods,1814.21,Externally Purchased Professional Services ,2223P02_CR00325,121165
Sandwell Metropolitan Borough Council,http://www.sandwell.gov.uk/info/200202/performance_and_spending/1079/payments_over_500,01-May-2022,Housing & Communities,WYNNSTAY (AGRICULTURAL SUPPLIES) LIMITED,Neighbourhoods,771.60,Externally Purchased Professional Services ,2223P02_CR00326,121165
Sandwell Metropolitan Borough Council,http://www.sandwell.gov.uk/info/200202/performance_and_spending/1079/payments_over_500,27-May-2022,Housing & Communities,A E HUDSON,Neighbourhoods,500.00,Rents,2223P02_CR00327,107342
Sandwell Metropolitan Borough Council,http://www.sandwell.gov.uk/info/200202/performance_and_spending/1079/payments_over_500,27-May-2022,Housing & Communities,A PRASHER,Neighbourhoods,500.00,Rents,2223P02_CR00328,112229
Sandwell Metropolitan Borough Council,http://www.sandwell.gov.uk/info/200202/performance_and_spending/1079/payments_over_500,27-May-2022,Housing & Communities,BALIJIT KAUR,Neighbourhoods,500.00,Rents,2223P02_CR00329,101860
Sandwell Metropolitan Borough Council,http://www.sandwell.gov.uk/info/200202/performance_and_spending/1079/payments_over_500,27-May-2022,Housing & Communities,BALJIT PUREWAL,Neighbourhoods,550.00,Rents,2223P02_CR00330,113595
Sandwell Metropolitan Borough Council,http://www.sandwell.gov.uk/info/200202/performance_and_spending/1079/payments_over_500,27-May-2022,Housing & Communities,BALWANT SINGH,Neighbourhoods,500.00,Rents,2223P02_CR00331,84433
Sandwell Metropolitan Borough Council,http://www.sandwell.gov.uk/info/200202/performance_and_spending/1079/payments_over_500,27-May-2022,Housing & Communities,C M REID,Neighbourhoods,500.00,Rents,2223P02_CR00332,106129
Sandwell Metropolitan Borough Council,http://www.sandwell.gov.uk/info/200202/performance_and_spending/1079/payments_over_500,27-May-2022,Housing & Communities,CHRISTINE ANN CADDEN,Neighbourhoods,500.00,Rents,2223P02_CR00333,112728
Sandwell Metropolitan Borough Council,http://www.sandwell.gov.uk/info/200202/performance_and_spending/1079/payments_over_500,27-May-2022,Housing & Communities,ELEANOR MCGEE,Neighbourhoods,550.00,Rents,2223P02_CR00334,109162
Sandwell Metropolitan Borough Council,http://www.sandwell.gov.uk/info/200202/performance_and_spending/1079/payments_over_500,27-May-2022,Housing & Communities,J S GARCHA,Neighbourhoods,500.00,Rents,2223P02_CR00335,106491
Sandwell Metropolitan Borough Council,http://www.sandwell.gov.uk/info/200202/performance_and_spending/1079/payments_over_500,27-May-2022,Housing & Communities,K PAREKH,Neighbourhoods,550.00,Rents,2223P02_CR00336,43404
Sandwell Metropolitan Borough Council,http://www.sandwell.gov.uk/info/200202/performance_and_spending/1079/payments_over_500,27-May-2022,Housing & Communities,LORNA DOUGLAS,Neighbourhoods,550.00,Rents,2223P02_CR00337,124809
Sandwell Metropolitan Borough Council,http://www.sandwell.gov.uk/info/200202/performance_and_spending/1079/payments_over_500,27-May-2022,Housing & Communities,MOHANAD ABBAS,Neighbourhoods,550.00,Rents,2223P02_CR00338,108876
Sandwell Metropolitan Borough Council,http://www.sandwell.gov.uk/info/200202/performance_and_spending/1079/payments_over_500,27-May-2022,Housing & Communities,Narinder singh.,Neighbourhoods,500.00,Rents,2223P02_CR00339,114091
Sandwell Metropolitan Borough Council,http://www.sandwell.gov.uk/info/200202/performance_and_spending/1079/payments_over_500,27-May-2022,Housing & Communities,SAKANDAR SINGH,Neighbourhoods,1000.00,Rents,2223P02_CR00340,117913
Sandwell Metropolitan Borough Council,http://www.sandwell.gov.uk/info/200202/performance_and_spending/1079/payments_over_500,26-May-2022,Housing & Communities,COMMUNITY ACTION PROJECT,Neighbourhoods,8421.82,Grant Payments,2223P02_CR00341,01702622
Sandwell Metropolitan Borough Council,http://www.sandwell.gov.uk/info/200202/performance_and_spending/1079/payments_over_500,01-May-2022,Housing & Communities,SANDWELL CITIZENS ADVICE BUREAUX,Neighbourhoods,349294.00,Grant Payments,2223P02_CR00342,01760899
Sandwell Metropolitan Borough Council,http://www.sandwell.gov.uk/info/200202/performance_and_spending/1079/payments_over_500,01-May-2022,Housing & Communities,SANDWELL CONSORTIUM CIC,Neighbourhoods,170285.00,Grant Payments,2223P02_CR00343,104616
Sandwell Metropolitan Borough Council,http://www.sandwell.gov.uk/info/200202/performance_and_spending/1079/payments_over_500,01-May-2022,Housing & Communities,SHARP LTD,Neighbourhoods,36905.00,Grant Payments,2223P02_CR00344,01601345
Sandwell Metropolitan Borough Council,http://www.sandwell.gov.uk/info/200202/performance_and_spending/1079/payments_over_500,01-May-2022,Housing & Communities,SMETHWICK PAKISTANI MUSLIM ASSOCIATION LTD,Neighbourhoods,15729.00,Grant Payments,2223P02_CR00345,01715191
Sandwell Metropolitan Borough Council,http://www.sandwell.gov.uk/info/200202/performance_and_spending/1079/payments_over_500,01-Apr-2022,Housing Revenue Account Capital,AXIS EUROPE PLC  ,Housing Revenue Account Capital,6273.03,Deferred Charges/Grant Payments,2223P02_CR00346,64946
Sandwell Metropolitan Borough Council,http://www.sandwell.gov.uk/info/200202/performance_and_spending/1079/payments_over_500,01-Apr-2022,Housing Revenue Account Capital,AXIS EUROPE PLC  ,Housing Revenue Account Capital,6075.41,Deferred Charges/Grant Payments,2223P02_CR00347,64946
Sandwell Metropolitan Borough Council,http://www.sandwell.gov.uk/info/200202/performance_and_spending/1079/payments_over_500,01-Apr-2022,Housing Revenue Account Capital,AXIS EUROPE PLC  ,Housing Revenue Account Capital,11955.83,Deferred Charges/Grant Payments,2223P02_CR00348,64946
Sandwell Metropolitan Borough Council,http://www.sandwell.gov.uk/info/200202/performance_and_spending/1079/payments_over_500,01-May-2022,Housing Revenue Account Capital,DOLPHIN LIFTS MIDLANDS LTD,Housing Revenue Account Capital,7316.45,Deferred Charges/Grant Payments,2223P02_CR00349,123852
Sandwell Metropolitan Borough Council,http://www.sandwell.gov.uk/info/200202/performance_and_spending/1079/payments_over_500,13-May-2022,Housing Revenue Account Capital,EVARIS SOLUTIONS LTD,Housing Revenue Account Capital,53550.00,"CIP - New Construction,Conversion, Enhancement & Reno",2223P02_CR00350,161598
Sandwell Metropolitan Borough Council,http://www.sandwell.gov.uk/info/200202/performance_and_spending/1079/payments_over_500,01-May-2022,Housing Revenue Account Capital,HIGGS LLP,Housing Revenue Account Capital,204363.00,CIP - Acquisition of Land & Existing Buildings,2223P02_CR00351,120965
Sandwell Metropolitan Borough Council,http://www.sandwell.gov.uk/info/200202/performance_and_spending/1079/payments_over_500,17-May-2022,Housing Revenue Account Capital,J.HARPER & SONS (LEOMINSTER) LIMITED,Housing Revenue Account Capital,263095.36,"CIP - New Construction,Conversion, Enhancement & Reno",2223P02_CR00352,111814
Sandwell Metropolitan Borough Council,http://www.sandwell.gov.uk/info/200202/performance_and_spending/1079/payments_over_500,01-May-2022,Housing Revenue Account Capital,LIFT & ENGINEERING SERVICES LTD,Housing Revenue Account Capital,1173.72,"CIP - New Construction,Conversion, Enhancement & Reno",2223P02_CR00353,77003962
Sandwell Metropolitan Borough Council,http://www.sandwell.gov.uk/info/200202/performance_and_spending/1079/payments_over_500,01-May-2022,Housing Revenue Account Capital,LIFT & ENGINEERING SERVICES LTD,Housing Revenue Account Capital,1173.72,"CIP - New Construction,Conversion, Enhancement & Reno",2223P02_CR00354,77003962
Sandwell Metropolitan Borough Council,http://www.sandwell.gov.uk/info/200202/performance_and_spending/1079/payments_over_500,01-May-2022,Housing Revenue Account Capital,LOVELL PARTNERSHIPS  LTD,Housing Revenue Account Capital,81228.39,"CIP - New Construction,Conversion, Enhancement & Reno",2223P02_CR00355,77007398
Sandwell Metropolitan Borough Council,http://www.sandwell.gov.uk/info/200202/performance_and_spending/1079/payments_over_500,05-May-2022,Housing Revenue Account Capital,LOVELL PARTNERSHIPS  LTD,Housing Revenue Account Capital,338252.42,"CIP - New Construction,Conversion, Enhancement & Reno",2223P02_CR00356,77007398
Sandwell Metropolitan Borough Council,http://www.sandwell.gov.uk/info/200202/performance_and_spending/1079/payments_over_500,05-May-2022,Housing Revenue Account Capital,LOVELL PARTNERSHIPS  LTD,Housing Revenue Account Capital,78181.24,"CIP - New Construction,Conversion, Enhancement & Reno",2223P02_CR00357,77007398
Sandwell Metropolitan Borough Council,http://www.sandwell.gov.uk/info/200202/performance_and_spending/1079/payments_over_500,06-May-2022,Housing Revenue Account Capital,LOVELL PARTNERSHIPS  LTD,Housing Revenue Account Capital,117162.52,"CIP - New Construction,Conversion, Enhancement & Reno",2223P02_CR00358,77007398
Sandwell Metropolitan Borough Council,http://www.sandwell.gov.uk/info/200202/performance_and_spending/1079/payments_over_500,01-May-2022,Housing Revenue Account Capital,NATIONWIDE WINDOWS LIMITED,Housing Revenue Account Capital,188656.48,"CIP - New Construction,Conversion, Enhancement & Reno",2223P02_CR00359,108316
Sandwell Metropolitan Borough Council,http://www.sandwell.gov.uk/info/200202/performance_and_spending/1079/payments_over_500,01-May-2022,Housing Revenue Account Capital,RIDGE & PARTNERS LLP,Housing Revenue Account Capital,8880.00,CIP - Infrastructure,2223P02_CR00360,134994
Sandwell Metropolitan Borough Council,http://www.sandwell.gov.uk/info/200202/performance_and_spending/1079/payments_over_500,17-May-2022,Housing Revenue Account Capital,SEDDON CONSTRUCTION LIMITED,Housing Revenue Account Capital,408711.82,"CIP - New Construction,Conversion, Enhancement & Reno",2223P02_CR00361,132999
Sandwell Metropolitan Borough Council,http://www.sandwell.gov.uk/info/200202/performance_and_spending/1079/payments_over_500,17-May-2022,Housing Revenue Account Capital,SEDDON CONSTRUCTION LIMITED,Housing Revenue Account Capital,234874.28,"CIP - New Construction,Conversion, Enhancement & Reno",2223P02_CR00362,132999
Sandwell Metropolitan Borough Council,http://www.sandwell.gov.uk/info/200202/performance_and_spending/1079/payments_over_500,01-May-2022,Housing Revenue Account Capital,SELECT WINDOWS (HOME IMPROVEMENTS) LIMITED,Housing Revenue Account Capital,921.46,Contract Payments,2223P02_CR00363,42616
Sandwell Metropolitan Borough Council,http://www.sandwell.gov.uk/info/200202/performance_and_spending/1079/payments_over_500,01-May-2022,Housing Revenue Account Capital,SELECT WINDOWS (HOME IMPROVEMENTS) LIMITED,Housing Revenue Account Capital,574.35,Contract Payments,2223P02_CR00364,42616
Sandwell Metropolitan Borough Council,http://www.sandwell.gov.uk/info/200202/performance_and_spending/1079/payments_over_500,01-May-2022,Housing Revenue Account Capital,SELECT WINDOWS (HOME IMPROVEMENTS) LIMITED,Housing Revenue Account Capital,2650.53,Contract Payments,2223P02_CR00365,42616
Sandwell Metropolitan Borough Council,http://www.sandwell.gov.uk/info/200202/performance_and_spending/1079/payments_over_500,01-May-2022,Housing Revenue Account Capital,SELECT WINDOWS (HOME IMPROVEMENTS) LIMITED,Housing Revenue Account Capital,1022.85,Contract Payments,2223P02_CR00366,42616
Sandwell Metropolitan Borough Council,http://www.sandwell.gov.uk/info/200202/performance_and_spending/1079/payments_over_500,06-May-2022,Housing Revenue Account Capital,STROMA SPECIALIST ACCESS LTD,Housing Revenue Account Capital,5080.00,"CIP - New Construction,Conversion, Enhancement & Reno",2223P02_CR00367,136243
Sandwell Metropolitan Borough Council,http://www.sandwell.gov.uk/info/200202/performance_and_spending/1079/payments_over_500,18-May-2022,Housing Revenue Account Capital,"SUSIE DUKE BSc, CONSULTANT ECOLOGIST",Housing Revenue Account Capital,739.50,"CIP - New Construction,Conversion, Enhancement & Reno",2223P02_CR00368,100601
Sandwell Metropolitan Borough Council,http://www.sandwell.gov.uk/info/200202/performance_and_spending/1079/payments_over_500,18-May-2022,Housing Revenue Account Capital,"SUSIE DUKE BSc, CONSULTANT ECOLOGIST",Housing Revenue Account Capital,794.25,"CIP - New Construction,Conversion, Enhancement & Reno",2223P02_CR00369,100601
Sandwell Metropolitan Borough Council,http://www.sandwell.gov.uk/info/200202/performance_and_spending/1079/payments_over_500,18-May-2022,Housing Revenue Account Capital,"SUSIE DUKE BSc, CONSULTANT ECOLOGIST",Housing Revenue Account Capital,794.25,"CIP - New Construction,Conversion, Enhancement & Reno",2223P02_CR00370,100601
Sandwell Metropolitan Borough Council,http://www.sandwell.gov.uk/info/200202/performance_and_spending/1079/payments_over_500,10-May-2022,Housing Revenue Account Capital,SYCAMORE WINDOWS & CONSERVATORIES LIMITED,Housing Revenue Account Capital,68002.17,"CIP - New Construction,Conversion, Enhancement & Reno",2223P02_CR00371,145272
Sandwell Metropolitan Borough Council,http://www.sandwell.gov.uk/info/200202/performance_and_spending/1079/payments_over_500,09-May-2022,Housing Revenue Account Capital,VINCI CONSTRUCTION LTD,Housing Revenue Account Capital,100489.15,"CIP - New Construction,Conversion, Enhancement & Reno",2223P02_CR00372,36361
Sandwell Metropolitan Borough Council,http://www.sandwell.gov.uk/info/200202/performance_and_spending/1079/payments_over_500,01-Apr-2022,Housing Revenue Account Capital,VINCI CONSTRUCTION LTD,Housing Revenue Account Capital,34979.01,Deferred Charges/Grant Payments,2223P02_CR00373,36361
Sandwell Metropolitan Borough Council,http://www.sandwell.gov.uk/info/200202/performance_and_spending/1079/payments_over_500,01-Apr-2022,Housing Revenue Account Capital,VINCI CONSTRUCTION LTD,Housing Revenue Account Capital,10866.19,Deferred Charges/Grant Payments,2223P02_CR00374,36361
Sandwell Metropolitan Borough Council,http://www.sandwell.gov.uk/info/200202/performance_and_spending/1079/payments_over_500,04-May-2022,Housing Revenue Account Capital,VINCI CONSTRUCTION LTD,Housing Revenue Account Capital,14453.45,Deferred Charges/Grant Payments,2223P02_CR00375,36361
Sandwell Metropolitan Borough Council,http://www.sandwell.gov.uk/info/200202/performance_and_spending/1079/payments_over_500,01-May-2022,Housing Revenue Account Capital,WESSEX LIFT CO LTD,Housing Revenue Account Capital,11103.00,Deferred Charges/Grant Payments,2223P02_CR00376,01095737
Sandwell Metropolitan Borough Council,http://www.sandwell.gov.uk/info/200202/performance_and_spending/1079/payments_over_500,01-May-2022,Housing Revenue Account Capital,EASIBATHE LTD,Housing Revenue Account Capital,2129.50,Deferred Charges/Grant Payments,2223P02_CR00377,46096
Sandwell Metropolitan Borough Council,http://www.sandwell.gov.uk/info/200202/performance_and_spending/1079/payments_over_500,23-May-2022,Individual School Budgets With Inclusion,5 STAR DAY NURSERY - OLDBURY,Individual School Budgets With Inclusion,9584.10,Grant Payments,2223P02_CR00378,120730
Sandwell Metropolitan Borough Council,http://www.sandwell.gov.uk/info/200202/performance_and_spending/1079/payments_over_500,23-May-2022,Individual School Budgets With Inclusion,5 STAR DAY NURSERY LIMITED,Individual School Budgets With Inclusion,8969.40,Grant Payments,2223P02_CR00379,105382
Sandwell Metropolitan Borough Council,http://www.sandwell.gov.uk/info/200202/performance_and_spending/1079/payments_over_500,23-May-2022,Individual School Budgets With Inclusion,ABC DAY NURSERY & PRE SCHOOL LTD,Individual School Budgets With Inclusion,11619.45,Grant Payments,2223P02_CR00380,01472823
Sandwell Metropolitan Borough Council,http://www.sandwell.gov.uk/info/200202/performance_and_spending/1079/payments_over_500,23-May-2022,Individual School Budgets With Inclusion,ADVENTURE QUEST (GREAT BRIDGE) LTD,Individual School Budgets With Inclusion,7083.90,Grant Payments,2223P02_CR00381,153563
Sandwell Metropolitan Borough Council,http://www.sandwell.gov.uk/info/200202/performance_and_spending/1079/payments_over_500,23-May-2022,Individual School Budgets With Inclusion,AL KAHIR SCHOOL,Individual School Budgets With Inclusion,3125.25,Grant Payments,2223P02_CR00382,128728
Sandwell Metropolitan Borough Council,http://www.sandwell.gov.uk/info/200202/performance_and_spending/1079/payments_over_500,23-May-2022,Individual School Budgets With Inclusion,BANANA MOON DAY NURSERY,Individual School Budgets With Inclusion,10209.15,Grant Payments,2223P02_CR00383,124220
Sandwell Metropolitan Borough Council,http://www.sandwell.gov.uk/info/200202/performance_and_spending/1079/payments_over_500,23-May-2022,Individual School Budgets With Inclusion,BLOXCIDGE HOUSE DAY NURSERY,Individual School Budgets With Inclusion,8125.65,Grant Payments,2223P02_CR00384,82862
Sandwell Metropolitan Borough Council,http://www.sandwell.gov.uk/info/200202/performance_and_spending/1079/payments_over_500,23-May-2022,Individual School Budgets With Inclusion,BLUEBELLS DAY NURSERY,Individual School Budgets With Inclusion,3709.80,Grant Payments,2223P02_CR00385,01721314
Sandwell Metropolitan Borough Council,http://www.sandwell.gov.uk/info/200202/performance_and_spending/1079/payments_over_500,23-May-2022,Individual School Budgets With Inclusion,BOOKWORMS DAYCARE BRICKHOUSE,Individual School Budgets With Inclusion,1363.95,Grant Payments,2223P02_CR00386,127727
Sandwell Metropolitan Borough Council,http://www.sandwell.gov.uk/info/200202/performance_and_spending/1079/payments_over_500,23-May-2022,Individual School Budgets With Inclusion,BOOKWORMS DAYCARE LIMITED,Individual School Budgets With Inclusion,10098.90,Grant Payments,2223P02_CR00387,114741
Sandwell Metropolitan Borough Council,http://www.sandwell.gov.uk/info/200202/performance_and_spending/1079/payments_over_500,23-May-2022,Individual School Budgets With Inclusion,BRIGHT LIGHTS DAY NURSERY,Individual School Budgets With Inclusion,10755.00,Grant Payments,2223P02_CR00388,89877
Sandwell Metropolitan Borough Council,http://www.sandwell.gov.uk/info/200202/performance_and_spending/1079/payments_over_500,23-May-2022,Individual School Budgets With Inclusion,BUSY BEE NURSERY,Individual School Budgets With Inclusion,10000.80,Grant Payments,2223P02_CR00389,01222577
Sandwell Metropolitan Borough Council,http://www.sandwell.gov.uk/info/200202/performance_and_spending/1079/payments_over_500,23-May-2022,Individual School Budgets With Inclusion,CAP DAY NURSERY,Individual School Budgets With Inclusion,7024.05,Grant Payments,2223P02_CR00390,51154
Sandwell Metropolitan Borough Council,http://www.sandwell.gov.uk/info/200202/performance_and_spending/1079/payments_over_500,23-May-2022,Individual School Budgets With Inclusion,CATHERINE HOUSE DAY NURSERY,Individual School Budgets With Inclusion,3503.70,Grant Payments,2223P02_CR00391,08587767
Sandwell Metropolitan Borough Council,http://www.sandwell.gov.uk/info/200202/performance_and_spending/1079/payments_over_500,23-May-2022,Individual School Budgets With Inclusion,CONFEDERATION OF BANGLADESHI ORGANISATIONS (CBO) LIMITED,Individual School Budgets With Inclusion,1458.45,Grant Payments,2223P02_CR00392,10034
Sandwell Metropolitan Borough Council,http://www.sandwell.gov.uk/info/200202/performance_and_spending/1079/payments_over_500,23-May-2022,Individual School Budgets With Inclusion,CONIFERS DAY NURSERY LTD,Individual School Budgets With Inclusion,7500.60,Grant Payments,2223P02_CR00393,131957
